Workbook

Sheet 附录C(投资规模)
A1: 预算编码 | B1: 预算基数（C） | D1: 基本工作基准预算（元） | F1: 可选工作基准预算（元）
B2: 万元 | D2: 基准费率（‰） | E2: 最大金额（元) | F2: 基准费率（‰） | G2: 最大金额（元)
A3: C1-1 | B3: 0 | C3: =B4 -> 100 | D3: 10 | E3: 0.00 | F3: 2 | G3: 0.00 | H3: 0 | I3: =H3&":{ref:'"&A3&"',staLine:"&B3&",endLine:"&C3&",basic:{staPrice:"&E3&",rate:"&D3/1000&"},optional:{staPrice:"&G3&",rate:"&F3/1000&"}}" -> 0:{ref:'C1-1',staLine:0,endLine:100,basic:{staPrice:0,rate:0.01},optional:{staPrice:0,rate:0.002}}
A4: C1-2 | B4: 100 | C4: =B5 -> 300 | D4: 8 | E4: =IF(ISNUMBER(E2),E2+($B4-$B3)*D3*10,($B4-$B3)*D3*10) -> 10,000.00 | F4: 1.6 | G4: =IF(ISNUMBER(G2),G2+($B4-$B3)*F3*10,($B4-$B3)*F3*10) -> 2,000.00 | H4: 1 | I4: =H4&":{ref:'"&A4&"',staLine:"&B4&",endLine:"&C4&",basic:{staPrice:"&E4&",rate:"&D4/1000&"},optional:{staPrice:"&G4&",rate:"&F4/1000&"}}" -> 1:{ref:'C1-2',staLine:100,endLine:300,basic:{staPrice:10000,rate:0.008},optional:{staPrice:2000,rate:0.0016}}
A5: C1-3 | B5: 300 | C5: 500 | D5: 5 | E5: =IF(ISNUMBER(E4),E4+($B5-$B4)*D4*10,($B5-$B4)*D4*10) -> 26,000.00 | F5: 1 | G5: =IF(ISNUMBER(G4),G4+($B5-$B4)*F4*10,($B5-$B4)*F4*10) -> 5,200.00 | H5: 2 | I5: 2:{ref:'C1-3',staLine:300,endLine:500,basic:{staPrice:26000,rate:0.005},optional:{staPrice:5200,rate:0.001}}
A6: C1-4 | B6: 500 | C6: 1,000 | D6: 4 | E6: 36,000.00 | F6: 0.8 | G6: 7,200.00 | H6: 3 | I6: 3:{ref:'C1-4',staLine:500,endLine:1000,basic:{staPrice:36000,rate:0.004},optional:{staPrice:7200,rate:0.0008}}
A7: C1-5 | B7: 1,000 | C7: 5,000 | D7: 3 | E7: 56,000.00 | F7: 0.6 | G7: 11,200.00 | H7: 4 | I7: 4:{ref:'C1-5',staLine:1000,endLine:5000,basic:{staPrice:56000,rate:0.003},optional:{staPrice:11200,rate:0.0006}}
A8: C1-6 | B8: 5,000 | C8: 10,000 | D8: 2 | E8: 176,000.00 | F8: 0.4 | G8: 35,200.00 | H8: 5 | I8: 5:{ref:'C1-6',staLine:5000,endLine:10000,basic:{staPrice:176000,rate:0.002},optional:{staPrice:35200,rate:0.0004}}
A9: C1-7 | B9: 10,000 | C9: 30,000 | D9: 1.6 | E9: 276,000.00 | F9: 0.32 | G9: 55,200.00 | H9: 6 | I9: 6:{ref:'C1-7',staLine:10000,endLine:30000,basic:{staPrice:276000,rate:0.0016},optional:{staPrice:55200,rate:0.00032}}
A10: C1-8 | B10: 30,000 | C10: 50,000 | D10: 1.3 | E10: 596,000.00 | F10: 0.26 | G10: 119,200.00 | H10: 7 | I10: 7:{ref:'C1-8',staLine:30000,endLine:50000,basic:{staPrice:596000,rate:0.0013},optional:{staPrice:119200,rate:0.00026}}
A11: C1-9 | B11: 50,000 | C11: 100,000 | D11: 1 | E11: 856,000.00 | F11: 0.2 | G11: 171,200.00 | H11: 8 | I11: 8:{ref:'C1-9',staLine:50000,endLine:100000,basic:{staPrice:856000,rate:0.001},optional:{staPrice:171200,rate:0.0002}}
A12: C1-10 | B12: 100,000 | C12: 150,000 | D12: 0.9 | E12: 1,356,000.00 | F12: 0.18 | G12: 271,200.00 | H12: 9 | I12: 9:{ref:'C1-10',staLine:100000,endLine:150000,basic:{staPrice:1356000,rate:0.0009},optional:{staPrice:271200,rate:0.00018}}
A13: C1-11 | B13: 150,000 | C13: 200,000 | D13: 0.8 | E13: 1,806,000.00 | F13: 0.16 | G13: 361,200.00 | H13: 10 | I13: 10:{ref:'C1-11',staLine:150000,endLine:200000,basic:{staPrice:1806000,rate:0.0008},optional:{staPrice:361200,rate:0.00016}}
A14: C1-12 | B14: 200,000 | C14: 300,000 | D14: 0.7 | E14: 2,206,000.00 | F14: 0.14 | G14: 441,200.00 | H14: 11 | I14: 11:{ref:'C1-12',staLine:200000,endLine:300000,basic:{staPrice:2206000,rate:0.0007},optional:{staPrice:441200,rate:0.00014}}
A15: C1-13 | B15: 300,000 | C15: 400,000 | D15: 0.6 | E15: 2,906,000.00 | F15: 0.12 | G15: 581,200.00 | H15: 12 | I15: 12:{ref:'C1-13',staLine:300000,endLine:400000,basic:{staPrice:2906000,rate:0.0006},optional:{staPrice:581200,rate:0.00012}}
A16: C1-14 | B16: 400,000 | C16: 600,000 | D16: 0.5 | E16: 3,506,000.00 | F16: 0.1 | G16: 701,200.00 | H16: 13 | I16: 13:{ref:'C1-14',staLine:400000,endLine:600000,basic:{staPrice:3506000,rate:0.0005},optional:{staPrice:701200,rate:0.0001}}
A17: C1-15 | B17: 600,000 | C17: 800,000 | D17: 0.4 | E17: 4,506,000.00 | F17: 0.08 | G17: 901,200.00 | H17: 14 | I17: 14:{ref:'C1-15',staLine:600000,endLine:800000,basic:{staPrice:4506000,rate:0.0004},optional:{staPrice:901200,rate:0.00008}}
A18: C1-16 | B18: 800,000 | C18: 1,000,000 | D18: 0.3 | E18: 5,306,000.00 | F18: 0.06 | G18: 1,061,200.00 | H18: 15 | I18: 15:{ref:'C1-16',staLine:800000,endLine:1000000,basic:{staPrice:5306000,rate:0.0003},optional:{staPrice:1061200,rate:0.00006}}
A19: C1-17 | B19: 1,000,000 | C19: null | D19: 0.25 | E19: 5,906,000.00 | F19: 0.05 | G19: 1,181,200.00 | H19: 16 | I19: 16:{ref:'C1-17',staLine:1000000,endLine:null,basic:{staPrice:5906000,rate:0.00025},optional:{staPrice:1181200,rate:0.00005}}
I20: ="{"&_xlfn.TEXTJOIN(",",TRUE,I3:I19)&",}" -> {0:{ref:'C1-1',staLine:0,endLine:100,basic:{staPrice:0,rate:0.01},optional:{staPrice:0,rate:0.002}},1:{ref:'C1-2',staLine:100,endLine:300,basic:{staPrice:10000,rate:0.008},optional:{staPrice:2000,rate:0.0016}},2:{ref:'C1-3',staLine:300,endLine:500,basic:{staPrice:26000,rate:0.005},optional:{staPrice:5200,rate:0.001}},3:{ref:'C1-4',staLine:500,endLine:1000,basic:{staPrice:36000,rate:0.004},optional:{staPrice:7200,rate:0.0008}},4:{ref:'C1-5',staLine:1000,endLine:5000,basic:{staPrice:56000,rate:0.003},optional:{staPrice:11200,rate:0.0006}},5:{ref:'C1-6',staLine:5000,endLine:10000,basic:{staPrice:176000,rate:0.002},optional:{staPrice:35200,rate:0.0004}},6:{ref:'C1-7',staLine:10000,endLine:30000,basic:{staPrice:276000,rate:0.0016},optional:{staPrice:55200,rate:0.00032}},7:{ref:'C1-8',staLine:30000,endLine:50000,basic:{staPrice:596000,rate:0.0013},optional:{staPrice:119200,rate:0.00026}},8:{ref:'C1-9',staLine:50000,endLine:100000,basic:{staPrice:856000,rate:0.001},optional:{staPrice:171200,rate:0.0002}},9:{ref:'C1-10',staLine:100000,endLine:150000,basic:{staPrice:1356000,rate:0.0009},optional:{staPrice:271200,rate:0.00018}},10:{ref:'C1-11',staLine:150000,endLine:200000,basic:{staPrice:1806000,rate:0.0008},optional:{staPrice:361200,rate:0.00016}},11:{ref:'C1-12',staLine:200000,endLine:300000,basic:{staPrice:2206000,rate:0.0007},optional:{staPrice:441200,rate:0.00014}},12:{ref:'C1-13',staLine:300000,endLine:400000,basic:{staPrice:2906000,rate:0.0006},optional:{staPrice:581200,rate:0.00012}},13:{ref:'C1-14',staLine:400000,endLine:600000,basic:{staPrice:3506000,rate:0.0005},optional:{staPrice:701200,rate:0.0001}},14:{ref:'C1-15',staLine:600000,endLine:800000,basic:{staPrice:4506000,rate:0.0004},optional:{staPrice:901200,rate:0.00008}},15:{ref:'C1-16',staLine:800000,endLine:1000000,basic:{staPrice:5306000,rate:0.0003},optional:{staPrice:1061200,rate:0.00006}},16:{ref:'C1-17',staLine:1000000,endLine:null,basic:{staPrice:5906000,rate:0.00025},optional:{staPrice:1181200,rate:0.00005}},}

Sheet 附录C(用地规模)
A1: 预算编码 | B1: 预算基数（S） | D1: 基本工作基准预算（元） | F1: 可选工作基准预算（元）
B2: 亩 | D2: 基准单价(元/亩) | E2: 最大金额（元) | F2: 基准单价(元/亩) | G2: 最大金额（元)
A3: C2-1 | B3: 0 | C3: =B4 -> 50 | D3: 200 | E3: 0.00 | F3: 40 | G3: 0.00 | H3: 0 | I3: =H3&":{ref:'"&A3&"',staLine:"&B3&",endLine:"&C3&",basic:{staPrice:"&E3&",rate:"&D3&"},optional:{staPrice:"&G3&",rate:"&F3&"}}" -> 0:{ref:'C2-1',staLine:0,endLine:50,basic:{staPrice:0,rate:200},optional:{staPrice:0,rate:40}}
A4: C2-2 | B4: 50 | C4: =B5 -> 100 | D4: 160 | E4: =IF(ISNUMBER(E2),E2+($B4-$B3)*D3,($B4-$B3)*D3) -> 10,000.00 | F4: 32 | G4: =IF(ISNUMBER(G2),G2+($B4-$B3)*F3,($B4-$B3)*F3) -> 2,000.00 | H4: 1 | I4: 1:{ref:'C2-2',staLine:50,endLine:100,basic:{staPrice:10000,rate:160},optional:{staPrice:2000,rate:32}}
A5: C2-3 | B5: 100 | C5: =B6 -> 500 | D5: 120 | E5: =IF(ISNUMBER(E4),E4+($B5-$B4)*D4,($B5-$B4)*D4) -> 18,000.00 | F5: 24 | G5: =IF(ISNUMBER(G4),G4+($B5-$B4)*F4,($B5-$B4)*F4) -> 3,600.00 | H5: 2 | I5: 2:{ref:'C2-3',staLine:100,endLine:500,basic:{staPrice:18000,rate:120},optional:{staPrice:3600,rate:24}}
A6: C2-4 | B6: 500 | C6: =B7 -> 1,000 | D6: 80 | E6: =IF(ISNUMBER(E5),E5+($B6-$B5)*D5,($B6-$B5)*D5) -> 66,000.00 | F6: 16 | G6: =IF(ISNUMBER(G5),G5+($B6-$B5)*F5,($B6-$B5)*F5) -> 13,200.00 | H6: 3 | I6: 3:{ref:'C2-4',staLine:500,endLine:1000,basic:{staPrice:66000,rate:80},optional:{staPrice:13200,rate:16}}
A7: C2-5 | B7: 1,000 | C7: =B8 -> 5,000 | D7: 60 | E7: =IF(ISNUMBER(E6),E6+($B7-$B6)*D6,($B7-$B6)*D6) -> 106,000.00 | F7: 12 | G7: =IF(ISNUMBER(G6),G6+($B7-$B6)*F6,($B7-$B6)*F6) -> 21,200.00 | H7: 4 | I7: 4:{ref:'C2-5',staLine:1000,endLine:5000,basic:{staPrice:106000,rate:60},optional:{staPrice:21200,rate:12}}
A8: C2-6 | B8: 5,000 | C8: null | D8: 20 | E8: =IF(ISNUMBER(E7),E7+($B8-$B7)*D7,($B8-$B7)*D7) -> 346,000.00 | F8: 4 | G8: =IF(ISNUMBER(G7),G7+($B8-$B7)*F7,($B8-$B7)*F7) -> 69,200.00 | H8: 5 | I8: 5:{ref:'C2-6',staLine:5000,endLine:null,basic:{staPrice:346000,rate:20},optional:{staPrice:69200,rate:4}}
I9: ="{"&_xlfn.TEXTJOIN(",",TRUE,I3:I8)&",}" -> {0:{ref:'C2-1',staLine:0,endLine:50,basic:{staPrice:0,rate:200},optional:{staPrice:0,rate:40}},1:{ref:'C2-2',staLine:50,endLine:100,basic:{staPrice:10000,rate:160},optional:{staPrice:2000,rate:32}},2:{ref:'C2-3',staLine:100,endLine:500,basic:{staPrice:18000,rate:120},optional:{staPrice:3600,rate:24}},3:{ref:'C2-4',staLine:500,endLine:1000,basic:{staPrice:66000,rate:80},optional:{staPrice:13200,rate:16}},4:{ref:'C2-5',staLine:1000,endLine:5000,basic:{staPrice:106000,rate:60},optional:{staPrice:21200,rate:12}},5:{ref:'C2-6',staLine:5000,endLine:null,basic:{staPrice:346000,rate:20},optional:{staPrice:69200,rate:4}},}

Sheet 附录C(信息咨询)
A1: 预算编码 | B1: 预算基数（C） | D1: 基本工作基准预算（元）
B2: 条 | D2: 基准单价(元/条) | E2: 最大金额（元)
A3: C8-1 | B3: 0 | C3: =B4 -> 10 | D3: 500 | E3: 0.00 | F3: 0 | G3: =F3&":{ref:'"&A3&"',staLine:"&B3&",endLine:"&C3&",staPrice:"&E3&",rate:"&D3&"}" -> 0:{ref:'C8-1',staLine:0,endLine:10,staPrice:0,rate:500}
A4: C8-2 | B4: 10 | C4: =B5 -> 30 | D4: 400 | E4: =IF(ISNUMBER(E2),E2+($B4-$B3)*D3,($B4-$B3)*D3) -> 5,000.00 | F4: 1 | G4: =F4&":{ref:'"&A4&"',staLine:"&B4&",endLine:"&C4&",staPrice:"&E4&",rate:"&D4&"}" -> 1:{ref:'C8-2',staLine:10,endLine:30,staPrice:5000,rate:400}
A5: C8-3 | B5: 30 | C5: =B6 -> 50 | D5: 300 | E5: =IF(ISNUMBER(E4),E4+($B5-$B4)*D4,($B5-$B4)*D4) -> 13,000.00 | F5: 2 | G5: =F5&":{ref:'"&A5&"',staLine:"&B5&",endLine:"&C5&",staPrice:"&E5&",rate:"&D5&"}" -> 2:{ref:'C8-3',staLine:30,endLine:50,staPrice:13000,rate:300}
A6: C8-4 | B6: 50 | C6: =B7 -> 100 | D6: 200 | E6: =IF(ISNUMBER(E5),E5+($B6-$B5)*D5,($B6-$B5)*D5) -> 19,000.00 | F6: 3 | G6: =F6&":{ref:'"&A6&"',staLine:"&B6&",endLine:"&C6&",staPrice:"&E6&",rate:"&D6&"}" -> 3:{ref:'C8-4',staLine:50,endLine:100,staPrice:19000,rate:200}
A7: C8-5 | B7: 100 | C7: null | D7: 100 | E7: =IF(ISNUMBER(E6),E6+($B7-$B6)*D6,($B7-$B6)*D6) -> 29,000.00 | F7: 4 | G7: =F7&":{ref:'"&A7&"',staLine:"&B7&",endLine:"&C7&",staPrice:"&E7&",rate:"&D7&"}" -> 4:{ref:'C8-5',staLine:100,endLine:null,staPrice:29000,rate:100}
G8: ="{"&_xlfn.TEXTJOIN(",",TRUE,G3:G7)&",}" -> {0:{ref:'C8-1',staLine:0,endLine:10,staPrice:0,rate:500},1:{ref:'C8-2',staLine:10,endLine:30,staPrice:5000,rate:400},2:{ref:'C8-3',staLine:30,endLine:50,staPrice:13000,rate:300},3:{ref:'C8-4',staLine:50,endLine:100,staPrice:19000,rate:200},4:{ref:'C8-5',staLine:100,endLine:null,staPrice:29000,rate:100},}

Sheet 附录C(非差额累进)
A1: 15 | B1: C4-1 | C1: 工程造价日常顾问 | D1: 服务月份数 | F1: TRUE | G1: 0.3 | H1: 0.5 | I1: 0.4 | J1: 万元/月 | K1: 10000 | L1: =ROW()-1 -> 0 | M1: =L1&":{serviceID:"&A1&",ref:'"&B1&"',name:'"&C1&"',basicParam:'"&D1&"',required:"&F1&",unit:'"&J1&"',conversion:"&K1&",maxPrice:"&H1&",minPrice:"&G1&",defPrice:"&I1&",desc:'"&E1&"'}" -> 0:{serviceID:15,ref:'C4-1',name:'工程造价日常顾问',basicParam:'服务月份数',required:TRUE,unit:'万元/月',conversion:10000,maxPrice:0.5,minPrice:0.3,defPrice:0.4,desc:''}
A2: 15 | B2: C4-2 | C2: 工程造价专项顾问 | D2: 服务项目的造价金额 | E2: 适用于涉及造价费用类的顾问 | F2: TRUE | G2: null | H2: null | I2: 0.01 | J2: % | K2: 0.01 | L2: =ROW()-1 -> 1 | M2: =L2&":{serviceID:"&A2&",ref:'"&B2&"',name:'"&C2&"',basicParam:'"&D2&"',required:"&F2&",unit:'"&J2&"',conversion:"&K2&",maxPrice:"&H2&",minPrice:"&G2&",defPrice:"&I2&",desc:'"&E2&"'}" -> 1:{serviceID:15,ref:'C4-2',name:'工程造价专项顾问',basicParam:'服务项目的造价金额',required:TRUE,unit:'%',conversion:0.01,maxPrice:null,minPrice:null,defPrice:0.01,desc:'适用于涉及造价费用类的顾问'}
A3: 16 | B3: C5-1 | C3: 组织与调研工作 | D3: 调研次数 | F3: TRUE | G3: 1 | H3: 2 | I3: =AVERAGE(G3:H3) -> 1.5 | J3: 万元/次 | K3: 10000 | L3: 2 | M3: 2:{serviceID:16,ref:'C5-1',name:'组织与调研工作',basicParam:'调研次数',required:TRUE,unit:'万元/次',conversion:10000,maxPrice:2,minPrice:1,defPrice:1.5,desc:''}
A4: 16 | B4: C5-2-1 | C4: 文件编写工作 | D4: 文件份数 | E4: 主编 | F4: TRUE | G4: 3 | H4: 5 | I4: 4 | J4: 万元/份 | K4: 10000 | L4: 3 | M4: 3:{serviceID:16,ref:'C5-2-1',name:'文件编写工作',basicParam:'文件份数',required:TRUE,unit:'万元/份',conversion:10000,maxPrice:5,minPrice:3,defPrice:4,desc:'主编'}
A5: 16 | B5: C5-2-2 | C5: 文件编写工作 | D5: 文件份数 | E5: 参编 | F5: TRUE | G5: 1 | H5: 3 | I5: 2 | J5: 万元/份 | K5: 10000 | L5: 4 | M5: 4:{serviceID:16,ref:'C5-2-2',name:'文件编写工作',basicParam:'文件份数',required:TRUE,unit:'万元/份',conversion:10000,maxPrice:3,minPrice:1,defPrice:2,desc:'参编'}
A6: 16 | B6: C5-3-1 | C6: 评审工作 | D6: 评审次数 | E6: 大型评审 | F6: FALSE | G6: 8 | H6: 20 | I6: 14 | J6: 万元/次 | K6: 10000 | L6: 5 | M6: 5:{serviceID:16,ref:'C5-3-1',name:'评审工作',basicParam:'评审次数',required:FALSE,unit:'万元/次',conversion:10000,maxPrice:20,minPrice:8,defPrice:14,desc:'大型评审'}
A7: 16 | B7: C5-3-2 | C7: 评审工作 | D7: 评审次数 | E7: 中型评审 | F7: FALSE | G7: 5 | H7: 10 | I7: 7.5 | J7: 万元/次 | K7: 10000 | L7: 6 | M7: 6:{serviceID:16,ref:'C5-3-2',name:'评审工作',basicParam:'评审次数',required:FALSE,unit:'万元/次',conversion:10000,maxPrice:10,minPrice:5,defPrice:7.5,desc:'中型评审'}
A8: 16 | B8: C5-3-3 | C8: 评审工作 | D8: 评审次数 | E8: 小型评审 | F8: FALSE | G8: 3 | H8: 6 | I8: 4.5 | J8: 万元/次 | K8: 10000 | L8: 7 | M8: 7:{serviceID:16,ref:'C5-3-3',name:'评审工作',basicParam:'评审次数',required:FALSE,unit:'万元/次',conversion:10000,maxPrice:6,minPrice:3,defPrice:4.5,desc:'小型评审'}
A9: 17 | B9: C6-1 | C9: 组织与调研工作 | D9: 调研次数 | F9: TRUE | G9: 1 | H9: 2 | I9: 1.5 | J9: 万元/次 | K9: 10000 | L9: 8 | M9: 8:{serviceID:17,ref:'C6-1',name:'组织与调研工作',basicParam:'调研次数',required:TRUE,unit:'万元/次',conversion:10000,maxPrice:2,minPrice:1,defPrice:1.5,desc:''}
A10: 17 | B10: C6-2-1 | C10: 研究及编写报告 | D10: 文件份数 | E10: 国家级 | F10: TRUE | G10: 20 | H10: 50 | I10: 35 | J10: 万元/份 | K10: 10000 | L10: 9 | M10: 9:{serviceID:17,ref:'C6-2-1',name:'研究及编写报告',basicParam:'文件份数',required:TRUE,unit:'万元/份',conversion:10000,maxPrice:50,minPrice:20,defPrice:35,desc:'国家级'}
A11: 17 | B11: C6-2-2 | C11: 研究及编写报告 | D11: 文件份数 | E11: 省部级 | F11: TRUE | G11: 10 | H11: 20 | I11: 15 | J11: 万元/份 | K11: 10000 | L11: 10 | M11: 10:{serviceID:17,ref:'C6-2-2',name:'研究及编写报告',basicParam:'文件份数',required:TRUE,unit:'万元/份',conversion:10000,maxPrice:20,minPrice:10,defPrice:15,desc:'省部级'}
A12: 17 | B12: C6-2-3 | C12: 研究及编写报告 | D12: 文件份数 | E12: 其他级 | F12: TRUE | G12: 5 | H12: 10 | I12: 7.5 | J12: 万元/份 | K12: 10000 | L12: =ROW()-1 -> 11 | M12: 11:{serviceID:17,ref:'C6-2-3',name:'研究及编写报告',basicParam:'文件份数',required:TRUE,unit:'万元/份',conversion:10000,maxPrice:10,minPrice:5,defPrice:7.5,desc:'其他级'}
A13: 17 | B13: C6-3-1 | C13: 标准与技术性指导文件的编制 | D13: 文件与标准的数量 | E13: 复杂标准 | F13: TRUE | G13: 50 | H13: 80 | I13: 65 | J13: 万元/份 | K13: 10000 | L13: 12 | M13: 12:{serviceID:17,ref:'C6-3-1',name:'标准与技术性指导文件的编制',basicParam:'文件与标准的数量',required:TRUE,unit:'万元/份',conversion:10000,maxPrice:80,minPrice:50,defPrice:65,desc:'复杂标准'}
A14: 17 | B14: C6-3-2 | C14: 标准与技术性指导文件的编制 | D14: 文件与标准的数量 | E14: 较复杂标准 | F14: TRUE | G14: 20 | H14: 50 | I14: 35 | J14: 万元/份 | K14: 10000 | L14: 13 | M14: 13:{serviceID:17,ref:'C6-3-2',name:'标准与技术性指导文件的编制',basicParam:'文件与标准的数量',required:TRUE,unit:'万元/份',conversion:10000,maxPrice:50,minPrice:20,defPrice:35,desc:'较复杂标准'}
A15: 17 | B15: C6-3-3 | C15: 标准与技术性指导文件的编制 | D15: 文件与标准的数量 | E15: 一般标准 | F15: TRUE | G15: 10 | H15: 20 | I15: 15 | J15: 万元/份 | K15: 10000 | L15: 14 | M15: 14:{serviceID:17,ref:'C6-3-3',name:'标准与技术性指导文件的编制',basicParam:'文件与标准的数量',required:TRUE,unit:'万元/份',conversion:10000,maxPrice:20,minPrice:10,defPrice:15,desc:'一般标准'}
A16: 17 | B16: C6-3-4 | C16: 标准与技术性指导文件的编制 | D16: 文件与标准的数量 | E16: 简单标准 | F16: TRUE | G16: 5 | H16: 10 | I16: 7.5 | J16: 万元/份 | K16: 10000 | L16: 15 | M16: 15:{serviceID:17,ref:'C6-3-4',name:'标准与技术性指导文件的编制',basicParam:'文件与标准的数量',required:TRUE,unit:'万元/份',conversion:10000,maxPrice:10,minPrice:5,defPrice:7.5,desc:'简单标准'}
A17: 17 | B17: C6-4-1 | C17: 评审与验收工作 | D17: 评审与验收次数 | E17: 大型评审 | F17: FALSE | G17: 8 | H17: 20 | I17: 14 | J17: 万元/次 | K17: 10000 | L17: 16 | M17: 16:{serviceID:17,ref:'C6-4-1',name:'评审与验收工作',basicParam:'评审与验收次数',required:FALSE,unit:'万元/次',conversion:10000,maxPrice:20,minPrice:8,defPrice:14,desc:'大型评审'}
A18: 17 | B18: C6-4-2 | C18: 评审与验收工作 | D18: 评审与验收次数 | E18: 中型评审 | F18: FALSE | G18: 5 | H18: 10 | I18: 7.5 | J18: 万元/次 | K18: 10000 | L18: 17 | M18: 17:{serviceID:17,ref:'C6-4-2',name:'评审与验收工作',basicParam:'评审与验收次数',required:FALSE,unit:'万元/次',conversion:10000,maxPrice:10,minPrice:5,defPrice:7.5,desc:'中型评审'}
A19: 17 | B19: C6-4-3 | C19: 评审与验收工作 | D19: 评审与验收次数 | E19: 小型评审 | F19: FALSE | G19: 3 | H19: 6 | I19: 4.5 | J19: 万元/次 | K19: 10000 | L19: 18 | M19: 18:{serviceID:17,ref:'C6-4-3',name:'评审与验收工作',basicParam:'评审与验收次数',required:FALSE,unit:'万元/次',conversion:10000,maxPrice:6,minPrice:3,defPrice:4.5,desc:'小型评审'}
A20: 17 | B20: C6-5-1 | C20: 培训与宣贯工作 | D20: 项目数量 | E20: 培训与宣贯材料 | F20: FALSE | G20: 1 | H20: 3 | I20: 2 | J20: 万元/次 | K20: 10000 | L20: 19 | M20: 19:{serviceID:17,ref:'C6-5-1',name:'培训与宣贯工作',basicParam:'项目数量',required:FALSE,unit:'万元/次',conversion:10000,maxPrice:3,minPrice:1,defPrice:2,desc:'培训与宣贯材料'}
A21: 17 | B21: C6-5-2 | C21: 培训与宣贯工作 | D21: 培训与宣贯次数 | E21: 组织培训与宣贯 | F21: FALSE | G21: 0.5 | H21: 1 | I21: 0.75 | J21: 万元/次 | K21: 10000 | L21: 20 | M21: 20:{serviceID:17,ref:'C6-5-2',name:'培训与宣贯工作',basicParam:'培训与宣贯次数',required:FALSE,unit:'万元/次',conversion:10000,maxPrice:1,minPrice:0.5,defPrice:0.75,desc:'组织培训与宣贯'}
A22: 18 | B22: C7-1 | C22: 组织与调研工作 | D22: 调研次数 | F22: TRUE | G22: 1 | H22: 2 | I22: 1.5 | J22: 万元/次 | K22: 10000 | L22: =ROW()-1 -> 21 | M22: 21:{serviceID:18,ref:'C7-1',name:'组织与调研工作',basicParam:'调研次数',required:TRUE,unit:'万元/次',conversion:10000,maxPrice:2,minPrice:1,defPrice:1.5,desc:''}
A23: 18 | B23: C7-2 | C23: 编制大纲 | D23: 项目数量 | E23: 包括技术与定额子目研究 | F23: TRUE | G23: 2 | H23: 3 | I23: 2.5 | J23: 万元/个 | K23: 10000 | L23: 22 | M23: 22:{serviceID:18,ref:'C7-2',name:'编制大纲',basicParam:'项目数量',required:TRUE,unit:'万元/个',conversion:10000,maxPrice:3,minPrice:2,defPrice:2.5,desc:'包括技术与定额子目研究'}
A24: 18 | B24: C7-3 | C24: 数据采集与测定 | D24: 采集组数 | E24: 现场采集方式时计 | F24: TRUE | G24: 0.2 | H24: 0.8 | I24: 0.5 | J24: 万元/组 | K24: 10000 | L24: 23 | M24: 23:{serviceID:18,ref:'C7-3',name:'数据采集与测定',basicParam:'采集组数',required:TRUE,unit:'万元/组',conversion:10000,maxPrice:0.8,minPrice:0.2,defPrice:0.5,desc:'现场采集方式时计'}
A25: 18 | B25: C7-4-1 | C25: 数据整理与分析 | D25: 定额子目条数 | E25: 简单定额 | F25: TRUE | G25: 0.1 | H25: 0.3 | I25: 0.2 | J25: 万元/条 | K25: 10000 | L25: 24 | M25: 24:{serviceID:18,ref:'C7-4-1',name:'数据整理与分析',basicParam:'定额子目条数',required:TRUE,unit:'万元/条',conversion:10000,maxPrice:0.3,minPrice:0.1,defPrice:0.2,desc:'简单定额'}
A26: 18 | B26: C7-4-2 | C26: 数据整理与分析 | D26: 定额子目条数 | E26: 复杂定额 | F26: TRUE | G26: 0.3 | H26: 3 | I26: 1.65 | J26: 万元/条 | K26: 10000 | L26: 25 | M26: 25:{serviceID:18,ref:'C7-4-2',name:'数据整理与分析',basicParam:'定额子目条数',required:TRUE,unit:'万元/条',conversion:10000,maxPrice:3,minPrice:0.3,defPrice:1.65,desc:'复杂定额'}
A27: 18 | B27: C7-5 | C27: 编写定额测定报告 | D27: 项目数量 | F27: TRUE | G27: 2 | H27: 5 | I27: 3.5 | J27: 万元/份 | K27: 10000 | L27: 26 | M27: 26:{serviceID:18,ref:'C7-5',name:'编写定额测定报告',basicParam:'项目数量',required:TRUE,unit:'万元/份',conversion:10000,maxPrice:5,minPrice:2,defPrice:3.5,desc:''}
A28: 18 | B28: C7-6-1 | C28: 编制定额文本和释义 | D28: 基本费用 | E28: 20条定额子目内 | F28: TRUE | G28: 0.5 | H28: 1 | I28: 0.75 | J28: 万元/份 | K28: 10000 | L28: 27 | M28: 27:{serviceID:18,ref:'C7-6-1',name:'编制定额文本和释义',basicParam:'基本费用',required:TRUE,unit:'万元/份',conversion:10000,maxPrice:1,minPrice:0.5,defPrice:0.75,desc:'20条定额子目内'}
A29: 18 | B29: C7-6-2 | C29: 编制定额文本和释义 | D29: 定额子目条数 | E29: 超过20条每增加1条 | F29: TRUE | G29: 0.1 | H29: 0.2 | I29: 0.15 | J29: 万元/条 | K29: 10000 | L29: 28 | M29: 28:{serviceID:18,ref:'C7-6-2',name:'编制定额文本和释义',basicParam:'定额子目条数',required:TRUE,unit:'万元/条',conversion:10000,maxPrice:0.2,minPrice:0.1,defPrice:0.15,desc:'超过20条每增加1条'}
A30: 18 | B30: C7-7-1 | C30: 评审与验收工作 | D30: 评审与验收次数 | E30: 大型评审 | F30: FALSE | G30: 8 | H30: 20 | I30: 14 | J30: 万元/次 | K30: 10000 | L30: 29 | M30: 29:{serviceID:18,ref:'C7-7-1',name:'评审与验收工作',basicParam:'评审与验收次数',required:FALSE,unit:'万元/次',conversion:10000,maxPrice:20,minPrice:8,defPrice:14,desc:'大型评审'}
A31: 18 | B31: C7-7-2 | C31: 评审与验收工作 | D31: 评审与验收次数 | E31: 中型评审 | F31: FALSE | G31: 5 | H31: 10 | I31: 7.5 | J31: 万元/次 | K31: 10000 | L31: 30 | M31: 30:{serviceID:18,ref:'C7-7-2',name:'评审与验收工作',basicParam:'评审与验收次数',required:FALSE,unit:'万元/次',conversion:10000,maxPrice:10,minPrice:5,defPrice:7.5,desc:'中型评审'}
A32: 18 | B32: C7-7-3 | C32: 评审与验收工作 | D32: 评审与验收次数 | E32: 小型评审 | F32: FALSE | G32: 3 | H32: 6 | I32: 4.5 | J32: 万元/次 | K32: 10000 | L32: =ROW()-1 -> 31 | M32: 31:{serviceID:18,ref:'C7-7-3',name:'评审与验收工作',basicParam:'评审与验收次数',required:FALSE,unit:'万元/次',conversion:10000,maxPrice:6,minPrice:3,defPrice:4.5,desc:'小型评审'}
A33: 18 | B33: C7-8-1 | C33: 培训与宣贯工作 | D33: 项目数量 | E33: 培训与宣贯材料 | F33: FALSE | G33: 1 | H33: 3 | I33: 2 | J33: 万元/次 | K33: 10000 | L33: 32 | M33: 32:{serviceID:18,ref:'C7-8-1',name:'培训与宣贯工作',basicParam:'项目数量',required:FALSE,unit:'万元/次',conversion:10000,maxPrice:3,minPrice:1,defPrice:2,desc:'培训与宣贯材料'}
A34: 18 | B34: C7-8-2 | C34: 培训与宣贯工作 | D34: 培训与宣贯次数 | E34: 组织培训与宣贯 | F34: FALSE | G34: 0.5 | H34: 1 | I34: 0.75 | J34: 万元/次 | K34: 10000 | L34: 33 | M34: 33:{serviceID:18,ref:'C7-8-2',name:'培训与宣贯工作',basicParam:'培训与宣贯次数',required:FALSE,unit:'万元/次',conversion:10000,maxPrice:1,minPrice:0.5,defPrice:0.75,desc:'组织培训与宣贯'}
A35: 19 | B35: C8-1 | C35: Q≤10条 | D35: 价格信息数量 | F35: TRUE | G35: null | H35: null | I35: 500 | J35: 元/条 | K35: 1 | L35: 34 | M35: 34:{serviceID:19,ref:'C8-1',name:'Q≤10条',basicParam:'价格信息数量',required:TRUE,unit:'元/条',conversion:1,maxPrice:null,minPrice:null,defPrice:500,desc:''}
A36: 19 | B36: C8-2 | C36: 10条<Q≤30条 | D36: 价格信息数量 | F36: TRUE | G36: null | H36: null | I36: 400 | J36: 元/条 | K36: 1 | L36: 35 | M36: 35:{serviceID:19,ref:'C8-2',name:'10条<Q≤30条',basicParam:'价格信息数量',required:TRUE,unit:'元/条',conversion:1,maxPrice:null,minPrice:null,defPrice:400,desc:''}
A37: 19 | B37: C8-3 | C37: 30条<Q≤50条 | D37: 价格信息数量 | F37: TRUE | G37: null | H37: null | I37: 300 | J37: 元/条 | K37: 1 | L37: 36 | M37: 36:{serviceID:19,ref:'C8-3',name:'30条<Q≤50条',basicParam:'价格信息数量',required:TRUE,unit:'元/条',conversion:1,maxPrice:null,minPrice:null,defPrice:300,desc:''}
A38: 19 | B38: C8-4 | C38: 50条<Q≤100条 | D38: 价格信息数量 | F38: TRUE | G38: null | H38: null | I38: 200 | J38: 元/条 | K38: 1 | L38: 37 | M38: 37:{serviceID:19,ref:'C8-4',name:'50条<Q≤100条',basicParam:'价格信息数量',required:TRUE,unit:'元/条',conversion:1,maxPrice:null,minPrice:null,defPrice:200,desc:''}
A39: 19 | B39: C8-5 | C39: Q>100条 | D39: 价格信息数量 | F39: TRUE | G39: null | H39: null | I39: 100 | J39: 元/条 | K39: 1 | L39: 38 | M39: 38:{serviceID:19,ref:'C8-5',name:'Q>100条',basicParam:'价格信息数量',required:TRUE,unit:'元/条',conversion:1,maxPrice:null,minPrice:null,defPrice:100,desc:''}
M40: ="{"&_xlfn.TEXTJOIN(",",TRUE,M1:M39)&",}" -> {0:{serviceID:15,ref:'C4-1',name:'工程造价日常顾问',basicParam:'服务月份数',required:TRUE,unit:'万元/月',conversion:10000,maxPrice:0.5,minPrice:0.3,defPrice:0.4,desc:''},1:{serviceID:15,ref:'C4-2',name:'工程造价专项顾问',basicParam:'服务项目的造价金额',required:TRUE,unit:'%',conversion:0.01,maxPrice:null,minPrice:null,defPrice:0.01,desc:'适用于涉及造价费用类的顾问'},2:{serviceID:16,ref:'C5-1',name:'组织与调研工作',basicParam:'调研次数',required:TRUE,unit:'万元/次',conversion:10000,maxPrice:2,minPrice:1,defPrice:1.5,desc:''},3:{serviceID:16,ref:'C5-2-1',name:'文件编写工作',basicParam:'文件份数',required:TRUE,unit:'万元/份',conversion:10000,maxPrice:5,minPrice:3,defPrice:4,desc:'主编'},4:{serviceID:16,ref:'C5-2-2',name:'文件编写工作',basicParam:'文件份数',required:TRUE,unit:'万元/份',conversion:10000,maxPrice:3,minPrice:1,defPrice:2,desc:'参编'},5:{serviceID:16,ref:'C5-3-1',name:'评审工作',basicParam:'评审次数',required:FALSE,unit:'万元/次',conversion:10000,maxPrice:20,minPrice:8,defPrice:14,desc:'大型评审'},6:{serviceID:16,ref:'C5-3-2',name:'评审工作',basicParam:'评审次数',required:FALSE,unit:'万元/次',conversion:10000,maxPrice:10,minPrice:5,defPrice:7.5,desc:'中型评审'},7:{serviceID:16,ref:'C5-3-3',name:'评审工作',basicParam:'评审次数',required:FALSE,unit:'万元/次',conversion:10000,maxPrice:6,minPrice:3,defPrice:4.5,desc:'小型评审'},8:{serviceID:17,ref:'C6-1',name:'组织与调研工作',basicParam:'调研次数',required:TRUE,unit:'万元/次',conversion:10000,maxPrice:2,minPrice:1,defPrice:1.5,desc:''},9:{serviceID:17,ref:'C6-2-1',name:'研究及编写报告',basicParam:'文件份数',required:TRUE,unit:'万元/份',conversion:10000,maxPrice:50,minPrice:20,defPrice:35,desc:'国家级'},10:{serviceID:17,ref:'C6-2-2',name:'研究及编写报告',basicParam:'文件份数',required:TRUE,unit:'万元/份',conversion:10000,maxPrice:20,minPrice:10,defPrice:15,desc:'省部级'},11:{serviceID:17,ref:'C6-2-3',name:'研究及编写报告',basicParam:'文件份数',required:TRUE,unit:'万元/份',conversion:10000,maxPrice:10,minPrice:5,defPrice:7.5,desc:'其他级'},12:{serviceID:17,ref:'C6-3-1',name:'标准与技术性指导文件的编制',basicParam:'文件与标准的数量',required:TRUE,unit:'万元/份',conversion:10000,maxPrice:80,minPrice:50,defPrice:65,desc:'复杂标准'},13:{serviceID:17,ref:'C6-3-2',name:'标准与技术性指导文件的编制',basicParam:'文件与标准的数量',required:TRUE,unit:'万元/份',conversion:10000,maxPrice:50,minPrice:20,defPrice:35,desc:'较复杂标准'},14:{serviceID:17,ref:'C6-3-3',name:'标准与技术性指导文件的编制',basicParam:'文件与标准的数量',required:TRUE,unit:'万元/份',conversion:10000,maxPrice:20,minPrice:10,defPrice:15,desc:'一般标准'},15:{serviceID:17,ref:'C6-3-4',name:'标准与技术性指导文件的编制',basicParam:'文件与标准的数量',required:TRUE,unit:'万元/份',conversion:10000,maxPrice:10,minPrice:5,defPrice:7.5,desc:'简单标准'},16:{serviceID:17,ref:'C6-4-1',name:'评审与验收工作',basicParam:'评审与验收次数',required:FALSE,unit:'万元/次',conversion:10000,maxPrice:20,minPrice:8,defPrice:14,desc:'大型评审'},17:{serviceID:17,ref:'C6-4-2',name:'评审与验收工作',basicParam:'评审与验收次数',required:FALSE,unit:'万元/次',conversion:10000,maxPrice:10,minPrice:5,defPrice:7.5,desc:'中型评审'},18:{serviceID:17,ref:'C6-4-3',name:'评审与验收工作',basicParam:'评审与验收次数',required:FALSE,unit:'万元/次',conversion:10000,maxPrice:6,minPrice:3,defPrice:4.5,desc:'小型评审'},19:{serviceID:17,ref:'C6-5-1',name:'培训与宣贯工作',basicParam:'项目数量',required:FALSE,unit:'万元/次',conversion:10000,maxPrice:3,minPrice:1,defPrice:2,desc:'培训与宣贯材料'},20:{serviceID:17,ref:'C6-5-2',name:'培训与宣贯工作',basicParam:'培训与宣贯次数',required:FALSE,unit:'万元/次',conversion:10000,maxPrice:1,minPrice:0.5,defPrice:0.75,desc:'组织培训与宣贯'},21:{serviceID:18,ref:'C7-1',name:'组织与调研工作',basicParam:'调研次数',required:TRUE,unit:'万元/次',conversion:10000,maxPrice:2,minPrice:1,defPrice:1.5,desc:''},22:{serviceID:18,ref:'C7-2',name:'编制大纲',basicParam:'项目数量',required:TRUE,unit:'万元/个',conversion:10000,maxPrice:3,minPrice:2,defPrice:2.5,desc:'包括技术与定额子目研究'},23:{serviceID:18,ref:'C7-3',name:'数据采集与测定',basicParam:'采集组数',required:TRUE,unit:'万元/组',conversion:10000,maxPrice:0.8,minPrice:0.2,defPrice:0.5,desc:'现场采集方式时计'},24:{serviceID:18,ref:'C7-4-1',name:'数据整理与分析',basicParam:'定额子目条数',required:TRUE,unit:'万元/条',conversion:10000,maxPrice:0.3,minPrice:0.1,defPrice:0.2,desc:'简单定额'},25:{serviceID:18,ref:'C7-4-2',name:'数据整理与分析',basicParam:'定额子目条数',required:TRUE,unit:'万元/条',conversion:10000,maxPrice:3,minPrice:0.3,defPrice:1.65,desc:'复杂定额'},26:{serviceID:18,ref:'C7-5',name:'编写定额测定报告',basicParam:'项目数量',required:TRUE,unit:'万元/份',conversion:10000,maxPrice:5,minPrice:2,defPrice:3.5,desc:''},27:{serviceID:18,ref:'C7-6-1',name:'编制定额文本和释义',basicParam:'基本费用',required:TRUE,unit:'万元/份',conversion:10000,maxPrice:1,minPrice:0.5,defPrice:0.75,desc:'20条定额子目内'},28:{serviceID:18,ref:'C7-6-2',name:'编制定额文本和释义',basicParam:'定额子目条数',required:TRUE,unit:'万元/条',conversion:10000,maxPrice:0.2,minPrice:0.1,defPrice:0.15,desc:'超过20条每增加1条'},29:{serviceID:18,ref:'C7-7-1',name:'评审与验收工作',basicParam:'评审与验收次数',required:FALSE,unit:'万元/次',conversion:10000,maxPrice:20,minPrice:8,defPrice:14,desc:'大型评审'},30:{serviceID:18,ref:'C7-7-2',name:'评审与验收工作',basicParam:'评审与验收次数',required:FALSE,unit:'万元/次',conversion:10000,maxPrice:10,minPrice:5,defPrice:7.5,desc:'中型评审'},31:{serviceID:18,ref:'C7-7-3',name:'评审与验收工作',basicParam:'评审与验收次数',required:FALSE,unit:'万元/次',conversion:10000,maxPrice:6,minPrice:3,defPrice:4.5,desc:'小型评审'},32:{serviceID:18,ref:'C7-8-1',name:'培训与宣贯工作',basicParam:'项目数量',required:FALSE,unit:'万元/次',conversion:10000,maxPrice:3,minPrice:1,defPrice:2,desc:'培训与宣贯材料'},33:{serviceID:18,ref:'C7-8-2',name:'培训与宣贯工作',basicParam:'培训与宣贯次数',required:FALSE,unit:'万元/次',conversion:10000,maxPrice:1,minPrice:0.5,defPrice:0.75,desc:'组织培训与宣贯'},34:{serviceID:19,ref:'C8-1',name:'Q≤10条',basicParam:'价格信息数量',required:TRUE,unit:'元/条',conversion:1,maxPrice:null,minPrice:null,defPrice:500,desc:''},35:{serviceID:19,ref:'C8-2',name:'10条<Q≤30条',basicParam:'价格信息数量',required:TRUE,unit:'元/条',conversion:1,maxPrice:null,minPrice:null,defPrice:400,desc:''},36:{serviceID:19,ref:'C8-3',name:'30条<Q≤50条',basicParam:'价格信息数量',required:TRUE,unit:'元/条',conversion:1,maxPrice:null,minPrice:null,defPrice:300,desc:''},37:{serviceID:19,ref:'C8-4',name:'50条<Q≤100条',basicParam:'价格信息数量',required:TRUE,unit:'元/条',conversion:1,maxPrice:null,minPrice:null,defPrice:200,desc:''},38:{serviceID:19,ref:'C8-5',name:'Q>100条',basicParam:'价格信息数量',required:TRUE,unit:'元/条',conversion:1,maxPrice:null,minPrice:null,defPrice:100,desc:''},}
A41: 15 | C41: =_xlfn.TEXTJOIN(",",TRUE,IF($A$1:$A$39=A41,$L$1:$L$39,"")) -> 0,1
A42: 16 | C42: =_xlfn.TEXTJOIN(",",TRUE,IF($A$1:$A$39=A42,$L$1:$L$39,"")) -> 2,3,4,5,6,7
A43: 17 | C43: =_xlfn.TEXTJOIN(",",TRUE,IF($A$1:$A$39=A43,$L$1:$L$39,"")) -> 8,9,10,11,12,13,14,15,16,17,18,19,20
A44: 18 | C44: =_xlfn.TEXTJOIN(",",TRUE,IF($A$1:$A$39=A44,$L$1:$L$39,"")) -> 21,22,23,24,25,26,27,28,29,30,31,32,33
A45: 19 | C45: =_xlfn.TEXTJOIN(",",TRUE,IF($A$1:$A$39=A45,$L$1:$L$39,"")) -> 34,35,36,37,38

Sheet 附录C(工日单价)
A1: C9-1-1 | B1: 技术员及其他 | C1: 600 | D1: 800 | E1: =AVERAGE(C1:D1) -> 700 | F1: 2.3 | G1: 0 | H1: =G1&":{ref:'"&A1&"',name:'"&B1&"',maxPrice:"&D1&",minPrice:"&C1&",defPrice:"&E1&",manageCoe:"&F1&"}" -> 0:{ref:'C9-1-1',name:'技术员及其他',maxPrice:800,minPrice:600,defPrice:700,manageCoe:2.3}
A2: C9-1-2 | B2: 助理工程师 | C2: 800 | D2: 1000 | E2: =AVERAGE(C2:D2) -> 900 | F2: 2.3 | G2: 1 | H2: =G2&":{ref:'"&A2&"',name:'"&B2&"',maxPrice:"&D2&",minPrice:"&C2&",defPrice:"&E2&",manageCoe:"&F2&"}" -> 1:{ref:'C9-1-2',name:'助理工程师',maxPrice:1000,minPrice:800,defPrice:900,manageCoe:2.3}
A3: C9-1-3 | B3: 中级工程师或二级造价工程师 | C3: 1000 | D3: 1500 | E3: 1250 | F3: 2.2 | G3: 2 | H3: 2:{ref:'C9-1-3',name:'中级工程师或二级造价工程师',maxPrice:1500,minPrice:1000,defPrice:1250,manageCoe:2.2}
A4: C9-1-4 | B4: 高级工程师或一级造价工程师 | C4: 1500 | D4: 1800 | E4: 1650 | F4: 2.1 | G4: 3 | H4: 3:{ref:'C9-1-4',name:'高级工程师或一级造价工程师',maxPrice:1800,minPrice:1500,defPrice:1650,manageCoe:2.1}
A5: C9-1-5 | B5: 正高级工程师或资深专家 | C5: 2000 | D5: 2500 | E5: 2250 | F5: 2 | G5: 4 | H5: 4:{ref:'C9-1-5',name:'正高级工程师或资深专家',maxPrice:2500,minPrice:2000,defPrice:2250,manageCoe:2}
A6: C9-2-1 | B6: 二级造价工程师且具备中级工程师资格 | C6: 1200 | D6: 1500 | E6: 1350 | F6: 2.2 | G6: 5 | H6: 5:{ref:'C9-2-1',name:'二级造价工程师且具备中级工程师资格',maxPrice:1500,minPrice:1200,defPrice:1350,manageCoe:2.2}
A7: C9-3-1 | B7: 一级造价工程师且具备中级工程师资格 | C7: 1500 | D7: 1800 | E7: 1650 | F7: 2.1 | G7: 6 | H7: 6:{ref:'C9-3-1',name:'一级造价工程师且具备中级工程师资格',maxPrice:1800,minPrice:1500,defPrice:1650,manageCoe:2.1}
A8: C9-3-2 | B8: 一级造价工程师且具备高级工程师资格 | C8: 1800 | D8: 2000 | E8: 1900 | F8: 2.05 | G8: 7 | H8: 7:{ref:'C9-3-2',name:'一级造价工程师且具备高级工程师资格',maxPrice:2000,minPrice:1800,defPrice:1900,manageCoe:2.05}
H9: ="{"&_xlfn.TEXTJOIN(",",TRUE,H1:H8)&",}" -> {0:{ref:'C9-1-1',name:'技术员及其他',maxPrice:800,minPrice:600,defPrice:700,manageCoe:2.3},1:{ref:'C9-1-2',name:'助理工程师',maxPrice:1000,minPrice:800,defPrice:900,manageCoe:2.3},2:{ref:'C9-1-3',name:'中级工程师或二级造价工程师',maxPrice:1500,minPrice:1000,defPrice:1250,manageCoe:2.2},3:{ref:'C9-1-4',name:'高级工程师或一级造价工程师',maxPrice:1800,minPrice:1500,defPrice:1650,manageCoe:2.1},4:{ref:'C9-1-5',name:'正高级工程师或资深专家',maxPrice:2500,minPrice:2000,defPrice:2250,manageCoe:2},5:{ref:'C9-2-1',name:'二级造价工程师且具备中级工程师资格',maxPrice:1500,minPrice:1200,defPrice:1350,manageCoe:2.2},6:{ref:'C9-3-1',name:'一级造价工程师且具备中级工程师资格',maxPrice:1800,minPrice:1500,defPrice:1650,manageCoe:2.1},7:{ref:'C9-3-2',name:'一级造价工程师且具备高级工程师资格',maxPrice:2000,minPrice:1800,defPrice:1900,manageCoe:2.05},}

Sheet 附录D
G1: id | H1: order | I1: scale | J1: onlyCostScale | K1: amount | L1: workDay | M1: isRoad | N1: isRailway | O1: isWaterway | P1: mutiple
A2: D1 | B2: 全过程造价咨询 | C2: null | D2: null | E2: 1 | G2: =ROW()-2 -> 0 | H2: =ROW()-1 -> 1 | I2: TRUE | J2: TRUE | K2: FALSE | L2: TRUE | M2: TRUE | N2: TRUE | O2: TRUE | P2: FALSE | Q2: =G2&":{ref:'"&A2&"',name:'"&B2&"',maxCoe:"&D2&",minCoe:"&C2&",defCoe:"&E2&",desc:'"&F2&"',isRoad:"&M2&",isRailway:"&N2&",isWaterway:"&O2&",mutiple:"&P2&",order:"&H2&",scale:"&I2&",onlyCostScale:"&J2&",amount:"&K2&",workDay:"&L2&"}" -> 0:{ref:'D1',name:'全过程造价咨询',maxCoe:null,minCoe:null,defCoe:1,desc:'',isRoad:TRUE,isRailway:TRUE,isWaterway:TRUE,mutiple:FALSE,order:1,scale:TRUE,onlyCostScale:TRUE,amount:FALSE,workDay:TRUE}
A3: D2 | B3: 分阶段造价咨询 | C3: null | D3: null | E3: null | G3: =ROW()-2 -> 1 | H3: =ROW()-1 -> 2 | I3: null | J3: null | K3: null | L3: null | M3: TRUE | N3: TRUE | O3: TRUE | P3: FALSE | Q3: 1:{ref:'D2',name:'分阶段造价咨询',maxCoe:null,minCoe:null,defCoe:null,desc:'',isRoad:TRUE,isRailway:TRUE,isWaterway:TRUE,mutiple:FALSE,order:2,scale:null,onlyCostScale:null,amount:null,workDay:null}
A4: D2-1 | B4: 前期阶段造价咨询 | C4: null | D4: null | E4: 0.5 | G4: 2 | H4: 3 | I4: TRUE | J4: TRUE | K4: FALSE | L4: TRUE | M4: TRUE | N4: TRUE | O4: TRUE | P4: FALSE | Q4: 2:{ref:'D2-1',name:'前期阶段造价咨询',maxCoe:null,minCoe:null,defCoe:0.5,desc:'',isRoad:TRUE,isRailway:TRUE,isWaterway:TRUE,mutiple:FALSE,order:3,scale:TRUE,onlyCostScale:TRUE,amount:FALSE,workDay:TRUE}
A5: D2-2-1 | B5: 实施阶段造价咨询（公路、水运） | C5: null | D5: null | E5: 0.55 | F5: 本系数适用于公路和水运工程。 | G5: 3 | H5: 4 | I5: TRUE | J5: TRUE | K5: FALSE | L5: TRUE | M5: TRUE | N5: FALSE | O5: TRUE | P5: FALSE | Q5: 3:{ref:'D2-2-1',name:'实施阶段造价咨询（公路、水运）',maxCoe:null,minCoe:null,defCoe:0.55,desc:'本系数适用于公路和水运工程。',isRoad:TRUE,isRailway:FALSE,isWaterway:TRUE,mutiple:FALSE,order:4,scale:TRUE,onlyCostScale:TRUE,amount:FALSE,workDay:TRUE}
A6: D2-2-2 | B6: 实施阶段造价咨询（铁路） | C6: null | D6: null | E6: 0.6 | F6: 本系数适用于铁路工程。 | G6: 4 | H6: 5 | I6: TRUE | J6: TRUE | K6: FALSE | L6: TRUE | M6: FALSE | N6: TRUE | O6: FALSE | P6: FALSE | Q6: 4:{ref:'D2-2-2',name:'实施阶段造价咨询（铁路）',maxCoe:null,minCoe:null,defCoe:0.6,desc:'本系数适用于铁路工程。',isRoad:FALSE,isRailway:TRUE,isWaterway:FALSE,mutiple:FALSE,order:5,scale:TRUE,onlyCostScale:TRUE,amount:FALSE,workDay:TRUE}
A7: D3 | B7: 基本造价咨询 | C7: null | D7: null | E7: null | G7: 5 | H7: 6 | I7: null | J7: null | K7: null | L7: null | M7: TRUE | N7: TRUE | O7: TRUE | P7: FALSE | Q7: 5:{ref:'D3',name:'基本造价咨询',maxCoe:null,minCoe:null,defCoe:null,desc:'',isRoad:TRUE,isRailway:TRUE,isWaterway:TRUE,mutiple:FALSE,order:6,scale:null,onlyCostScale:null,amount:null,workDay:null}
A8: D3-1 | B8: 投资估算 | C8: null | D8: null | E8: 0.1 | F8: 委托同一咨询人同时负责D3-1和D3-2时，D3-1和D3-2的合计调整系数为0.25。 | G8: 6 | H8: 7 | I8: TRUE | J8: TRUE | K8: FALSE | L8: TRUE | M8: TRUE | N8: TRUE | O8: TRUE | P8: FALSE | Q8: 6:{ref:'D3-1',name:'投资估算',maxCoe:null,minCoe:null,defCoe:0.1,desc:'委托同一咨询人同时负责D3-1和D3-2时，D3-1和D3-2的合计调整系数为0.25。',isRoad:TRUE,isRailway:TRUE,isWaterway:TRUE,mutiple:FALSE,order:7,scale:TRUE,onlyCostScale:TRUE,amount:FALSE,workDay:TRUE}
A9: D3-2 | B9: 设计概算 | C9: null | D9: null | E9: 0.2 | G9: 7 | H9: 8 | I9: TRUE | J9: TRUE | K9: FALSE | L9: TRUE | M9: TRUE | N9: TRUE | O9: TRUE | P9: FALSE | Q9: 7:{ref:'D3-2',name:'设计概算',maxCoe:null,minCoe:null,defCoe:0.2,desc:'',isRoad:TRUE,isRailway:TRUE,isWaterway:TRUE,mutiple:FALSE,order:8,scale:TRUE,onlyCostScale:TRUE,amount:FALSE,workDay:TRUE}
A10: D3-3 | B10: 施工图预算 | C10: null | D10: null | E10: 0.25 | F10: 委托同一咨询人同时负责D3-3和D3-4时，D3-3和D3-4的合计调整系数为0.3。 | G10: 8 | H10: 9 | I10: TRUE | J10: FALSE | K10: FALSE | L10: TRUE | M10: TRUE | N10: TRUE | O10: TRUE | P10: FALSE | Q10: 8:{ref:'D3-3',name:'施工图预算',maxCoe:null,minCoe:null,defCoe:0.25,desc:'委托同一咨询人同时负责D3-3和D3-4时，D3-3和D3-4的合计调整系数为0.3。',isRoad:TRUE,isRailway:TRUE,isWaterway:TRUE,mutiple:FALSE,order:9,scale:TRUE,onlyCostScale:FALSE,amount:FALSE,workDay:TRUE}
A11: D3-4 | B11: 招标工程量清单及清单预算（或最高投标限价） | C11: null | D11: null | E11: 0.15 | G11: 9 | H11: 10 | I11: TRUE | J11: FALSE | K11: FALSE | L11: TRUE | M11: TRUE | N11: TRUE | O11: TRUE | P11: FALSE | Q11: 9:{ref:'D3-4',name:'招标工程量清单及清单预算（或最高投标限价）',maxCoe:null,minCoe:null,defCoe:0.15,desc:'',isRoad:TRUE,isRailway:TRUE,isWaterway:TRUE,mutiple:FALSE,order:10,scale:TRUE,onlyCostScale:FALSE,amount:FALSE,workDay:TRUE}
A12: D3-5 | B12: 清理概算（仅限铁路） | C12: null | D12: null | E12: 0.2 | F12: 本系数适用于铁路工程。 | G12: 10 | H12: 11 | I12: TRUE | J12: TRUE | K12: FALSE | L12: TRUE | M12: FALSE | N12: TRUE | O12: FALSE | P12: FALSE | Q12: 10:{ref:'D3-5',name:'清理概算（仅限铁路）',maxCoe:null,minCoe:null,defCoe:0.2,desc:'本系数适用于铁路工程。',isRoad:FALSE,isRailway:TRUE,isWaterway:FALSE,mutiple:FALSE,order:11,scale:TRUE,onlyCostScale:TRUE,amount:FALSE,workDay:TRUE}
A13: D3-6-1 | B13: 合同（工程）结算 | C13: null | D13: null | E13: 0.3 | F13: 本系数适用于公路和水运工程。 | G13: =ROW()-2 -> 11 | H13: =ROW()-1 -> 12 | I13: TRUE | J13: FALSE | K13: FALSE | L13: TRUE | M13: TRUE | N13: FALSE | O13: TRUE | P13: FALSE | Q13: 11:{ref:'D3-6-1',name:'合同（工程）结算',maxCoe:null,minCoe:null,defCoe:0.3,desc:'本系数适用于公路和水运工程。',isRoad:TRUE,isRailway:FALSE,isWaterway:TRUE,mutiple:FALSE,order:12,scale:TRUE,onlyCostScale:FALSE,amount:FALSE,workDay:TRUE}
A14: D3-6-2 | B14: 合同（工程）结算 | C14: null | D14: null | E14: 0.2 | F14: 本系数适用于铁路工程。 | G14: 12 | H14: 13 | I14: TRUE | J14: FALSE | K14: FALSE | L14: TRUE | M14: FALSE | N14: TRUE | O14: FALSE | P14: FALSE | Q14: 12:{ref:'D3-6-2',name:'合同（工程）结算',maxCoe:null,minCoe:null,defCoe:0.2,desc:'本系数适用于铁路工程。',isRoad:FALSE,isRailway:TRUE,isWaterway:FALSE,mutiple:FALSE,order:13,scale:TRUE,onlyCostScale:FALSE,amount:FALSE,workDay:TRUE}
A15: D3-7 | B15: 竣工决算 | C15: null | D15: null | E15: 0.1 | G15: 13 | H15: 14 | I15: TRUE | J15: TRUE | K15: FALSE | L15: TRUE | M15: TRUE | N15: TRUE | O15: TRUE | P15: FALSE | Q15: 13:{ref:'D3-7',name:'竣工决算',maxCoe:null,minCoe:null,defCoe:0.1,desc:'',isRoad:TRUE,isRailway:TRUE,isWaterway:TRUE,mutiple:FALSE,order:14,scale:TRUE,onlyCostScale:TRUE,amount:FALSE,workDay:TRUE}
A16: D4 | B16: 专项造价咨询 | C16: null | D16: null | E16: null | G16: 14 | H16: 15 | I16: null | J16: null | K16: null | L16: null | M16: TRUE | N16: TRUE | O16: TRUE | P16: FALSE | Q16: 14:{ref:'D4',name:'专项造价咨询',maxCoe:null,minCoe:null,defCoe:null,desc:'',isRoad:TRUE,isRailway:TRUE,isWaterway:TRUE,mutiple:FALSE,order:15,scale:null,onlyCostScale:null,amount:null,workDay:null}
A17: D4-1 | B17: 工程造价顾问 | C17: null | D17: null | E17: 1 | F17: 本表系数适用于采用工作量计价法基准预算的调整系数。 | G17: 15 | H17: 16 | I17: FALSE | J17: null | K17: TRUE | L17: TRUE | M17: TRUE | N17: TRUE | O17: TRUE | P17: FALSE | Q17: 15:{ref:'D4-1',name:'工程造价顾问',maxCoe:null,minCoe:null,defCoe:1,desc:'本表系数适用于采用工作量计价法基准预算的调整系数。',isRoad:TRUE,isRailway:TRUE,isWaterway:TRUE,mutiple:FALSE,order:16,scale:FALSE,onlyCostScale:null,amount:TRUE,workDay:TRUE}
A18: D4-2 | B18: 造价政策制（修）订 | C18: null | D18: null | E18: 1 | G18: 16 | H18: 17 | I18: FALSE | J18: null | K18: TRUE | L18: TRUE | M18: TRUE | N18: TRUE | O18: TRUE | P18: FALSE | Q18: 16:{ref:'D4-2',name:'造价政策制（修）订',maxCoe:null,minCoe:null,defCoe:1,desc:'',isRoad:TRUE,isRailway:TRUE,isWaterway:TRUE,mutiple:FALSE,order:17,scale:FALSE,onlyCostScale:null,amount:TRUE,workDay:TRUE}
A19: D4-3 | B19: 造价科学与技术研究 | C19: null | D19: null | E19: 1 | G19: 17 | H19: 18 | I19: FALSE | J19: null | K19: TRUE | L19: TRUE | M19: TRUE | N19: TRUE | O19: TRUE | P19: FALSE | Q19: 17:{ref:'D4-3',name:'造价科学与技术研究',maxCoe:null,minCoe:null,defCoe:1,desc:'',isRoad:TRUE,isRailway:TRUE,isWaterway:TRUE,mutiple:FALSE,order:18,scale:FALSE,onlyCostScale:null,amount:TRUE,workDay:TRUE}
A20: D4-4 | B20: 定额测定 | C20: null | D20: null | E20: 1 | G20: 18 | H20: 19 | I20: FALSE | J20: null | K20: TRUE | L20: TRUE | M20: TRUE | N20: TRUE | O20: TRUE | P20: FALSE | Q20: 18:{ref:'D4-4',name:'定额测定',maxCoe:null,minCoe:null,defCoe:1,desc:'',isRoad:TRUE,isRailway:TRUE,isWaterway:TRUE,mutiple:FALSE,order:19,scale:FALSE,onlyCostScale:null,amount:TRUE,workDay:TRUE}
A21: D4-5 | B21: 造价信息咨询 | C21: null | D21: null | E21: 1 | G21: 19 | H21: 20 | I21: FALSE | J21: null | K21: TRUE | L21: TRUE | M21: TRUE | N21: TRUE | O21: TRUE | P21: FALSE | Q21: =G21&":{ref:'"&A21&"',name:'"&B21&"',maxCoe:"&D21&",minCoe:"&C21&",defCoe:"&E21&",desc:'"&F21&"',isRoad:"&M21&",isRailway:"&N21&",isWaterway:"&O21&",mutiple:"&P21&",order:"&H21&",scale:"&I21&",onlyCostScale:"&J21&",amount:"&K21&",workDay:"&L21&"}" -> 19:{ref:'D4-5',name:'造价信息咨询',maxCoe:null,minCoe:null,defCoe:1,desc:'',isRoad:TRUE,isRailway:TRUE,isWaterway:TRUE,mutiple:FALSE,order:20,scale:FALSE,onlyCostScale:null,amount:TRUE,workDay:TRUE}
A22: D4-6 | B22: 造价鉴定 | C22: null | D22: null | E22: 0.5 | F22: 本表系数适用于采用规模计价法基准预算的调整系数。 | G22: 20 | H22: 21 | I22: TRUE | J22: FALSE | K22: FALSE | L22: TRUE | M22: TRUE | N22: TRUE | O22: TRUE | P22: FALSE | Q22: 20:{ref:'D4-6',name:'造价鉴定',maxCoe:null,minCoe:null,defCoe:0.5,desc:'本表系数适用于采用规模计价法基准预算的调整系数。',isRoad:TRUE,isRailway:TRUE,isWaterway:TRUE,mutiple:FALSE,order:21,scale:TRUE,onlyCostScale:FALSE,amount:FALSE,workDay:TRUE}
A23: D4-7 | B23: 工程成本测算 | C23: null | D23: null | E23: 0.1 | G23: =ROW()-2 -> 21 | H23: =ROW()-1 -> 22 | I23: TRUE | J23: FALSE | K23: FALSE | L23: TRUE | M23: TRUE | N23: TRUE | O23: TRUE | P23: FALSE | Q23: 21:{ref:'D4-7',name:'工程成本测算',maxCoe:null,minCoe:null,defCoe:0.1,desc:'',isRoad:TRUE,isRailway:TRUE,isWaterway:TRUE,mutiple:FALSE,order:22,scale:TRUE,onlyCostScale:FALSE,amount:FALSE,workDay:TRUE}
A24: D4-8 | B24: 工程成本核算 | C24: null | D24: null | E24: 0.1 | G24: 22 | H24: 23 | I24: TRUE | J24: FALSE | K24: FALSE | L24: TRUE | M24: TRUE | N24: TRUE | O24: TRUE | P24: FALSE | Q24: 22:{ref:'D4-8',name:'工程成本核算',maxCoe:null,minCoe:null,defCoe:0.1,desc:'',isRoad:TRUE,isRailway:TRUE,isWaterway:TRUE,mutiple:FALSE,order:23,scale:TRUE,onlyCostScale:FALSE,amount:FALSE,workDay:TRUE}
A25: D4-9 | B25: 计算工程量 | C25: null | D25: null | E25: 0.2 | G25: 23 | H25: 24 | I25: TRUE | J25: FALSE | K25: FALSE | L25: TRUE | M25: TRUE | N25: TRUE | O25: TRUE | P25: FALSE | Q25: 23:{ref:'D4-9',name:'计算工程量',maxCoe:null,minCoe:null,defCoe:0.2,desc:'',isRoad:TRUE,isRailway:TRUE,isWaterway:TRUE,mutiple:FALSE,order:24,scale:TRUE,onlyCostScale:FALSE,amount:FALSE,workDay:TRUE}
A26: D4-10 | B26: 工程变更费用咨询 | C26: null | D26: null | E26: 0.5 | G26: 24 | H26: 25 | I26: TRUE | J26: FALSE | K26: FALSE | L26: TRUE | M26: TRUE | N26: TRUE | O26: TRUE | P26: FALSE | Q26: 24:{ref:'D4-10',name:'工程变更费用咨询',maxCoe:null,minCoe:null,defCoe:0.5,desc:'',isRoad:TRUE,isRailway:TRUE,isWaterway:TRUE,mutiple:FALSE,order:25,scale:TRUE,onlyCostScale:FALSE,amount:FALSE,workDay:TRUE}
A27: D4-11 | B27: 调整估算 | C27: 0.1 | D27: 0.2 | E27: 0.15 | G27: 25 | H27: 26 | I27: TRUE | J27: TRUE | K27: FALSE | L27: TRUE | M27: TRUE | N27: TRUE | O27: TRUE | P27: FALSE | Q27: 25:{ref:'D4-11',name:'调整估算',maxCoe:0.2,minCoe:0.1,defCoe:0.15,desc:'',isRoad:TRUE,isRailway:TRUE,isWaterway:TRUE,mutiple:FALSE,order:26,scale:TRUE,onlyCostScale:TRUE,amount:FALSE,workDay:TRUE}
A28: D4-12 | B28: 调整概算 | C28: 0.15 | D28: 0.3 | E28: 0.225 | F28: 本表系数适用于采用规模计价法基准预算的系数；依据其调整时期所在建设阶段和基础资料的不同，其系数取值不同。 | G28: 26 | H28: 27 | I28: TRUE | J28: TRUE | K28: FALSE | L28: TRUE | M28: TRUE | N28: TRUE | O28: TRUE | P28: FALSE | Q28: 26:{ref:'D4-12',name:'调整概算',maxCoe:0.3,minCoe:0.15,defCoe:0.225,desc:'本表系数适用于采用规模计价法基准预算的系数；依据其调整时期所在建设阶段和基础资料的不同，其系数取值不同。',isRoad:TRUE,isRailway:TRUE,isWaterway:TRUE,mutiple:FALSE,order:27,scale:TRUE,onlyCostScale:TRUE,amount:FALSE,workDay:TRUE}
A29: D4-13 | B29: 造价检查 | C29: null | D29: null | E29: null | F29: 可按照服务工日数量×服务工日人工单价×综合预算系数；也可按照服务工日数量×服务工日综合预算单价。 | G29: 27 | H29: 28 | I29: FALSE | J29: null | K29: FALSE | L29: TRUE | M29: TRUE | N29: TRUE | O29: TRUE | P29: FALSE | Q29: 27:{ref:'D4-13',name:'造价检查',maxCoe:null,minCoe:null,defCoe:null,desc:'可按照服务工日数量×服务工日人工单价×综合预算系数；也可按照服务工日数量×服务工日综合预算单价。',isRoad:TRUE,isRailway:TRUE,isWaterway:TRUE,mutiple:FALSE,order:28,scale:FALSE,onlyCostScale:null,amount:FALSE,workDay:TRUE}
A30: D4-14 | B30: 其他专项咨询 | C30: null | D30: null | E30: null | F30: 可参照相同或相似服务的系数。 | G30: 28 | H30: 29 | I30: FALSE | J30: null | K30: FALSE | L30: TRUE | M30: TRUE | N30: TRUE | O30: TRUE | P30: FALSE | Q30: 28:{ref:'D4-14',name:'其他专项咨询',maxCoe:null,minCoe:null,defCoe:null,desc:'可参照相同或相似服务的系数。',isRoad:TRUE,isRailway:TRUE,isWaterway:TRUE,mutiple:FALSE,order:29,scale:FALSE,onlyCostScale:null,amount:FALSE,workDay:TRUE}
A31: D4-15-1 | B31: 造价数据测试验证(估算) | C31: null | D31: null | E31: 0.04 | F31: 委托同一咨询人同时负责D3-1和D3-2时，D3-1和D3-2的合计调整系数为0.25。 | G31: 29 | H31: 30 | I31: TRUE | J31: TRUE | K31: FALSE | L31: TRUE | M31: TRUE | N31: TRUE | O31: TRUE | P31: TRUE | Q31: 29:{ref:'D4-15-1',name:'造价数据测试验证(估算)',maxCoe:null,minCoe:null,defCoe:0.04,desc:'委托同一咨询人同时负责D3-1和D3-2时，D3-1和D3-2的合计调整系数为0.25。',isRoad:TRUE,isRailway:TRUE,isWaterway:TRUE,mutiple:TRUE,order:30,scale:TRUE,onlyCostScale:TRUE,amount:FALSE,workDay:TRUE}
A32: D4-15-2 | B32: 造价数据测试验证(概算) | C32: null | D32: null | E32: 0.08 | G32: 30 | H32: 31 | I32: TRUE | J32: TRUE | K32: FALSE | L32: TRUE | M32: TRUE | N32: TRUE | O32: TRUE | P32: TRUE | Q32: 30:{ref:'D4-15-2',name:'造价数据测试验证(概算)',maxCoe:null,minCoe:null,defCoe:0.08,desc:'',isRoad:TRUE,isRailway:TRUE,isWaterway:TRUE,mutiple:TRUE,order:31,scale:TRUE,onlyCostScale:TRUE,amount:FALSE,workDay:TRUE}
A33: D4-15-3 | B33: 造价数据测试验证(施工图预算) | C33: null | D33: null | E33: 0.1 | F33: 委托同一咨询人同时负责D3-3和D3-4时，D3-3和D3-4的合计调整系数为0.3。 | G33: =ROW()-2 -> 31 | H33: =ROW()-1 -> 32 | I33: TRUE | J33: FALSE | K33: FALSE | L33: TRUE | M33: TRUE | N33: TRUE | O33: TRUE | P33: TRUE | Q33: 31:{ref:'D4-15-3',name:'造价数据测试验证(施工图预算)',maxCoe:null,minCoe:null,defCoe:0.1,desc:'委托同一咨询人同时负责D3-3和D3-4时，D3-3和D3-4的合计调整系数为0.3。',isRoad:TRUE,isRailway:TRUE,isWaterway:TRUE,mutiple:TRUE,order:32,scale:TRUE,onlyCostScale:FALSE,amount:FALSE,workDay:TRUE}
A34: D4-15-4 | B34: 造价数据测试验证(招标工程量清单及清单预算（或最高投标限价）) | C34: null | D34: null | E34: 0.06 | G34: 32 | H34: 33 | I34: TRUE | J34: FALSE | K34: FALSE | L34: TRUE | M34: TRUE | N34: TRUE | O34: TRUE | P34: TRUE | Q34: 32:{ref:'D4-15-4',name:'造价数据测试验证(招标工程量清单及清单预算（或最高投标限价）)',maxCoe:null,minCoe:null,defCoe:0.06,desc:'',isRoad:TRUE,isRailway:TRUE,isWaterway:TRUE,mutiple:TRUE,order:33,scale:TRUE,onlyCostScale:FALSE,amount:FALSE,workDay:TRUE}
A35: D4-15-5 | B35: 造价数据测试验证(清理概算（仅限铁路）) | C35: null | D35: null | E35: 0.08 | F35: 本系数适用于铁路工程。 | G35: 33 | H35: 34 | I35: TRUE | J35: TRUE | K35: FALSE | L35: TRUE | M35: FALSE | N35: TRUE | O35: FALSE | P35: TRUE | Q35: 33:{ref:'D4-15-5',name:'造价数据测试验证(清理概算（仅限铁路）)',maxCoe:null,minCoe:null,defCoe:0.08,desc:'本系数适用于铁路工程。',isRoad:FALSE,isRailway:TRUE,isWaterway:FALSE,mutiple:TRUE,order:34,scale:TRUE,onlyCostScale:TRUE,amount:FALSE,workDay:TRUE}
A36: D4-15-6 | B36: 造价数据测试验证(合同（工程）结算) | C36: null | D36: null | E36: 0.12 | F36: 本系数适用于公路和水运工程。 | G36: 34 | H36: 35 | I36: TRUE | J36: FALSE | K36: FALSE | L36: TRUE | M36: TRUE | N36: FALSE | O36: TRUE | P36: TRUE | Q36: 34:{ref:'D4-15-6',name:'造价数据测试验证(合同（工程）结算)',maxCoe:null,minCoe:null,defCoe:0.12,desc:'本系数适用于公路和水运工程。',isRoad:TRUE,isRailway:FALSE,isWaterway:TRUE,mutiple:TRUE,order:35,scale:TRUE,onlyCostScale:FALSE,amount:FALSE,workDay:TRUE}
A37: D4-15-7 | B37: 造价数据测试验证(合同（工程）结算) | C37: null | D37: null | E37: 0.08 | F37: 本系数适用于铁路工程。 | G37: 35 | H37: 36 | I37: TRUE | J37: FALSE | K37: FALSE | L37: TRUE | M37: FALSE | N37: TRUE | O37: FALSE | P37: TRUE | Q37: 35:{ref:'D4-15-7',name:'造价数据测试验证(合同（工程）结算)',maxCoe:null,minCoe:null,defCoe:0.08,desc:'本系数适用于铁路工程。',isRoad:FALSE,isRailway:TRUE,isWaterway:FALSE,mutiple:TRUE,order:36,scale:TRUE,onlyCostScale:FALSE,amount:FALSE,workDay:TRUE}
A38: D4-15-8 | B38: 造价数据测试验证(竣工决算) | C38: null | D38: null | E38: 0.04 | G38: 36 | H38: 37 | I38: TRUE | J38: TRUE | K38: FALSE | L38: TRUE | M38: TRUE | N38: TRUE | O38: TRUE | P38: TRUE | Q38: 36:{ref:'D4-15-8',name:'造价数据测试验证(竣工决算)',maxCoe:null,minCoe:null,defCoe:0.04,desc:'',isRoad:TRUE,isRailway:TRUE,isWaterway:TRUE,mutiple:TRUE,order:37,scale:TRUE,onlyCostScale:TRUE,amount:FALSE,workDay:TRUE}
Q39: ="{"&_xlfn.TEXTJOIN(",",TRUE,Q2:Q38)&",}" -> {0:{ref:'D1',name:'全过程造价咨询',maxCoe:null,minCoe:null,defCoe:1,desc:'',isRoad:TRUE,isRailway:TRUE,isWaterway:TRUE,mutiple:FALSE,order:1,scale:TRUE,onlyCostScale:TRUE,amount:FALSE,workDay:TRUE},1:{ref:'D2',name:'分阶段造价咨询',maxCoe:null,minCoe:null,defCoe:null,desc:'',isRoad:TRUE,isRailway:TRUE,isWaterway:TRUE,mutiple:FALSE,order:2,scale:null,onlyCostScale:null,amount:null,workDay:null},2:{ref:'D2-1',name:'前期阶段造价咨询',maxCoe:null,minCoe:null,defCoe:0.5,desc:'',isRoad:TRUE,isRailway:TRUE,isWaterway:TRUE,mutiple:FALSE,order:3,scale:TRUE,onlyCostScale:TRUE,amount:FALSE,workDay:TRUE},3:{ref:'D2-2-1',name:'实施阶段造价咨询（公路、水运）',maxCoe:null,minCoe:null,defCoe:0.55,desc:'本系数适用于公路和水运工程。',isRoad:TRUE,isRailway:FALSE,isWaterway:TRUE,mutiple:FALSE,order:4,scale:TRUE,onlyCostScale:TRUE,amount:FALSE,workDay:TRUE},4:{ref:'D2-2-2',name:'实施阶段造价咨询（铁路）',maxCoe:null,minCoe:null,defCoe:0.6,desc:'本系数适用于铁路工程。',isRoad:FALSE,isRailway:TRUE,isWaterway:FALSE,mutiple:FALSE,order:5,scale:TRUE,onlyCostScale:TRUE,amount:FALSE,workDay:TRUE},5:{ref:'D3',name:'基本造价咨询',maxCoe:null,minCoe:null,defCoe:null,desc:'',isRoad:TRUE,isRailway:TRUE,isWaterway:TRUE,mutiple:FALSE,order:6,scale:null,onlyCostScale:null,amount:null,workDay:null},6:{ref:'D3-1',name:'投资估算',maxCoe:null,minCoe:null,defCoe:0.1,desc:'委托同一咨询人同时负责D3-1和D3-2时，D3-1和D3-2的合计调整系数为0.25。',isRoad:TRUE,isRailway:TRUE,isWaterway:TRUE,mutiple:FALSE,order:7,scale:TRUE,onlyCostScale:TRUE,amount:FALSE,workDay:TRUE},7:{ref:'D3-2',name:'设计概算',maxCoe:null,minCoe:null,defCoe:0.2,desc:'',isRoad:TRUE,isRailway:TRUE,isWaterway:TRUE,mutiple:FALSE,order:8,scale:TRUE,onlyCostScale:TRUE,amount:FALSE,workDay:TRUE},8:{ref:'D3-3',name:'施工图预算',maxCoe:null,minCoe:null,defCoe:0.25,desc:'委托同一咨询人同时负责D3-3和D3-4时，D3-3和D3-4的合计调整系数为0.3。',isRoad:TRUE,isRailway:TRUE,isWaterway:TRUE,mutiple:FALSE,order:9,scale:TRUE,onlyCostScale:FALSE,amount:FALSE,workDay:TRUE},9:{ref:'D3-4',name:'招标工程量清单及清单预算（或最高投标限价）',maxCoe:null,minCoe:null,defCoe:0.15,desc:'',isRoad:TRUE,isRailway:TRUE,isWaterway:TRUE,mutiple:FALSE,order:10,scale:TRUE,onlyCostScale:FALSE,amount:FALSE,workDay:TRUE},10:{ref:'D3-5',name:'清理概算（仅限铁路）',maxCoe:null,minCoe:null,defCoe:0.2,desc:'本系数适用于铁路工程。',isRoad:FALSE,isRailway:TRUE,isWaterway:FALSE,mutiple:FALSE,order:11,scale:TRUE,onlyCostScale:TRUE,amount:FALSE,workDay:TRUE},11:{ref:'D3-6-1',name:'合同（工程）结算',maxCoe:null,minCoe:null,defCoe:0.3,desc:'本系数适用于公路和水运工程。',isRoad:TRUE,isRailway:FALSE,isWaterway:TRUE,mutiple:FALSE,order:12,scale:TRUE,onlyCostScale:FALSE,amount:FALSE,workDay:TRUE},12:{ref:'D3-6-2',name:'合同（工程）结算',maxCoe:null,minCoe:null,defCoe:0.2,desc:'本系数适用于铁路工程。',isRoad:FALSE,isRailway:TRUE,isWaterway:FALSE,mutiple:FALSE,order:13,scale:TRUE,onlyCostScale:FALSE,amount:FALSE,workDay:TRUE},13:{ref:'D3-7',name:'竣工决算',maxCoe:null,minCoe:null,defCoe:0.1,desc:'',isRoad:TRUE,isRailway:TRUE,isWaterway:TRUE,mutiple:FALSE,order:14,scale:TRUE,onlyCostScale:TRUE,amount:FALSE,workDay:TRUE},14:{ref:'D4',name:'专项造价咨询',maxCoe:null,minCoe:null,defCoe:null,desc:'',isRoad:TRUE,isRailway:TRUE,isWaterway:TRUE,mutiple:FALSE,order:15,scale:null,onlyCostScale:null,amount:null,workDay:null},15:{ref:'D4-1',name:'工程造价顾问',maxCoe:null,minCoe:null,defCoe:1,desc:'本表系数适用于采用工作量计价法基准预算的调整系数。',isRoad:TRUE,isRailway:TRUE,isWaterway:TRUE,mutiple:FALSE,order:16,scale:FALSE,onlyCostScale:null,amount:TRUE,workDay:TRUE},16:{ref:'D4-2',name:'造价政策制（修）订',maxCoe:null,minCoe:null,defCoe:1,desc:'',isRoad:TRUE,isRailway:TRUE,isWaterway:TRUE,mutiple:FALSE,order:17,scale:FALSE,onlyCostScale:null,amount:TRUE,workDay:TRUE},17:{ref:'D4-3',name:'造价科学与技术研究',maxCoe:null,minCoe:null,defCoe:1,desc:'',isRoad:TRUE,isRailway:TRUE,isWaterway:TRUE,mutiple:FALSE,order:18,scale:FALSE,onlyCostScale:null,amount:TRUE,workDay:TRUE},18:{ref:'D4-4',name:'定额测定',maxCoe:null,minCoe:null,defCoe:1,desc:'',isRoad:TRUE,isRailway:TRUE,isWaterway:TRUE,mutiple:FALSE,order:19,scale:FALSE,onlyCostScale:null,amount:TRUE,workDay:TRUE},19:{ref:'D4-5',name:'造价信息咨询',maxCoe:null,minCoe:null,defCoe:1,desc:'',isRoad:TRUE,isRailway:TRUE,isWaterway:TRUE,mutiple:FALSE,order:20,scale:FALSE,onlyCostScale:null,amount:TRUE,workDay:TRUE},20:{ref:'D4-6',name:'造价鉴定',maxCoe:null,minCoe:null,defCoe:0.5,desc:'本表系数适用于采用规模计价法基准预算的调整系数。',isRoad:TRUE,isRailway:TRUE,isWaterway:TRUE,mutiple:FALSE,order:21,scale:TRUE,onlyCostScale:FALSE,amount:FALSE,workDay:TRUE},21:{ref:'D4-7',name:'工程成本测算',maxCoe:null,minCoe:null,defCoe:0.1,desc:'',isRoad:TRUE,isRailway:TRUE,isWaterway:TRUE,mutiple:FALSE,order:22,scale:TRUE,onlyCostScale:FALSE,amount:FALSE,workDay:TRUE},22:{ref:'D4-8',name:'工程成本核算',maxCoe:null,minCoe:null,defCoe:0.1,desc:'',isRoad:TRUE,isRailway:TRUE,isWaterway:TRUE,mutiple:FALSE,order:23,scale:TRUE,onlyCostScale:FALSE,amount:FALSE,workDay:TRUE},23:{ref:'D4-9',name:'计算工程量',maxCoe:null,minCoe:null,defCoe:0.2,desc:'',isRoad:TRUE,isRailway:TRUE,isWaterway:TRUE,mutiple:FALSE,order:24,scale:TRUE,onlyCostScale:FALSE,amount:FALSE,workDay:TRUE},24:{ref:'D4-10',name:'工程变更费用咨询',maxCoe:null,minCoe:null,defCoe:0.5,desc:'',isRoad:TRUE,isRailway:TRUE,isWaterway:TRUE,mutiple:FALSE,order:25,scale:TRUE,onlyCostScale:FALSE,amount:FALSE,workDay:TRUE},25:{ref:'D4-11',name:'调整估算',maxCoe:0.2,minCoe:0.1,defCoe:0.15,desc:'',isRoad:TRUE,isRailway:TRUE,isWaterway:TRUE,mutiple:FALSE,order:26,scale:TRUE,onlyCostScale:TRUE,amount:FALSE,workDay:TRUE},26:{ref:'D4-12',name:'调整概算',maxCoe:0.3,minCoe:0.15,defCoe:0.225,desc:'本表系数适用于采用规模计价法基准预算的系数；依据其调整时期所在建设阶段和基础资料的不同，其系数取值不同。',isRoad:TRUE,isRailway:TRUE,isWaterway:TRUE,mutiple:FALSE,order:27,scale:TRUE,onlyCostScale:TRUE,amount:FALSE,workDay:TRUE},27:{ref:'D4-13',name:'造价检查',maxCoe:null,minCoe:null,defCoe:null,desc:'可按照服务工日数量×服务工日人工单价×综合预算系数；也可按照服务工日数量×服务工日综合预算单价。',isRoad:TRUE,isRailway:TRUE,isWaterway:TRUE,mutiple:FALSE,order:28,scale:FALSE,onlyCostScale:null,amount:FALSE,workDay:TRUE},28:{ref:'D4-14',name:'其他专项咨询',maxCoe:null,minCoe:null,defCoe:null,desc:'可参照相同或相似服务的系数。',isRoad:TRUE,isRailway:TRUE,isWaterway:TRUE,mutiple:FALSE,order:29,scale:FALSE,onlyCostScale:null,amount:FALSE,workDay:TRUE},29:{ref:'D4-15-1',name:'造价数据测试验证(估算)',maxCoe:null,minCoe:null,defCoe:0.04,desc:'委托同一咨询人同时负责D3-1和D3-2时，D3-1和D3-2的合计调整系数为0.25。',isRoad:TRUE,isRailway:TRUE,isWaterway:TRUE,mutiple:TRUE,order:30,scale:TRUE,onlyCostScale:TRUE,amount:FALSE,workDay:TRUE},30:{ref:'D4-15-2',name:'造价数据测试验证(概算)',maxCoe:null,minCoe:null,defCoe:0.08,desc:'',isRoad:TRUE,isRailway:TRUE,isWaterway:TRUE,mutiple:TRUE,order:31,scale:TRUE,onlyCostScale:TRUE,amount:FALSE,workDay:TRUE},31:{ref:'D4-15-3',name:'造价数据测试验证(施工图预算)',maxCoe:null,minCoe:null,defCoe:0.1,desc:'委托同一咨询人同时负责D3-3和D3-4时，D3-3和D3-4的合计调整系数为0.3。',isRoad:TRUE,isRailway:TRUE,isWaterway:TRUE,mutiple:TRUE,order:32,scale:TRUE,onlyCostScale:FALSE,amount:FALSE,workDay:TRUE},32:{ref:'D4-15-4',name:'造价数据测试验证(招标工程量清单及清单预算（或最高投标限价）)',maxCoe:null,minCoe:null,defCoe:0.06,desc:'',isRoad:TRUE,isRailway:TRUE,isWaterway:TRUE,mutiple:TRUE,order:33,scale:TRUE,onlyCostScale:FALSE,amount:FALSE,workDay:TRUE},33:{ref:'D4-15-5',name:'造价数据测试验证(清理概算（仅限铁路）)',maxCoe:null,minCoe:null,defCoe:0.08,desc:'本系数适用于铁路工程。',isRoad:FALSE,isRailway:TRUE,isWaterway:FALSE,mutiple:TRUE,order:34,scale:TRUE,onlyCostScale:TRUE,amount:FALSE,workDay:TRUE},34:{ref:'D4-15-6',name:'造价数据测试验证(合同（工程）结算)',maxCoe:null,minCoe:null,defCoe:0.12,desc:'本系数适用于公路和水运工程。',isRoad:TRUE,isRailway:FALSE,isWaterway:TRUE,mutiple:TRUE,order:35,scale:TRUE,onlyCostScale:FALSE,amount:FALSE,workDay:TRUE},35:{ref:'D4-15-7',name:'造价数据测试验证(合同（工程）结算)',maxCoe:null,minCoe:null,defCoe:0.08,desc:'本系数适用于铁路工程。',isRoad:FALSE,isRailway:TRUE,isWaterway:FALSE,mutiple:TRUE,order:36,scale:TRUE,onlyCostScale:FALSE,amount:FALSE,workDay:TRUE},36:{ref:'D4-15-8',name:'造价数据测试验证(竣工决算)',maxCoe:null,minCoe:null,defCoe:0.04,desc:'',isRoad:TRUE,isRailway:TRUE,isWaterway:TRUE,mutiple:TRUE,order:37,scale:TRUE,onlyCostScale:TRUE,amount:FALSE,workDay:TRUE},}

Sheet 附录E
G1: hasCost | H1: hasArea | I1: isRoad | J1: isRailway | K1: isWaterway
A2: E1 | B2: 交通运输工程通用专业 | C2: null | E2: =ROW()-2 -> 0 | F2: =ROW()-1 -> 1 | G2: FALSE | H2: FALSE | I2: TRUE | J2: TRUE | K2: TRUE | L2: =E2&":{ref:'"&A2&"',name:'"&B2&"',maxCoe:null,minCoe:null,defCoe:"&C2&",desc:'"&D2&"',isRoad:"&I2&",isRailway:"&J2&",isWaterway:"&K2&",order:"&F2&",hasCost:"&G2&",hasArea:"&H2&"}" -> 0:{ref:'E1',name:'交通运输工程通用专业',maxCoe:null,minCoe:null,defCoe:null,desc:'',isRoad:TRUE,isRailway:TRUE,isWaterway:TRUE,order:1,hasCost:FALSE,hasArea:FALSE}
A3: E1-1 | B3: 征地（用海）补偿 | C3: 1 | D3: 适用于交通建设项目征地（用海）补偿的施工图预算、招标工程量清单及清单预算（或最高投标限价）、清理概算（仅限铁路工程）、合同（工程）结算和造价鉴定、计算工程量、工程变更费用咨询、工程成本测（核）算 | E3: =ROW()-2 -> 1 | F3: =ROW()-1 -> 2 | G3: TRUE | H3: TRUE | I3: TRUE | J3: TRUE | K3: TRUE | L3: =E3&":{ref:'"&A3&"',name:'"&B3&"',maxCoe:null,minCoe:null,defCoe:"&C3&",desc:'"&D3&"',isRoad:"&I3&",isRailway:"&J3&",isWaterway:"&K3&",order:"&F3&",hasCost:"&G3&",hasArea:"&H3&"}" -> 1:{ref:'E1-1',name:'征地（用海）补偿',maxCoe:null,minCoe:null,defCoe:1,desc:'适用于交通建设项目征地（用海）补偿的施工图预算、招标工程量清单及清单预算（或最高投标限价）、清理概算（仅限铁路工程）、合同（工程）结算和造价鉴定、计算工程量、工程变更费用咨询、工程成本测（核）算',isRoad:TRUE,isRailway:TRUE,isWaterway:TRUE,order:2,hasCost:TRUE,hasArea:TRUE}
A4: E1-2 | B4: 拆迁补偿 | C4: 2.5 | D4: 适用于交通建设项目拆迁补偿的施工图预算、招标工程量清单及清单预算（或最高投标限价）、清理概算（仅限铁路工程）、合同（工程）结算和造价鉴定、计算工程量、工程变更费用咨询、工程成本测（核）算 | E4: 2 | F4: 3 | G4: TRUE | H4: TRUE | I4: TRUE | J4: TRUE | K4: TRUE | L4: 2:{ref:'E1-2',name:'拆迁补偿',maxCoe:null,minCoe:null,defCoe:2.5,desc:'适用于交通建设项目拆迁补偿的施工图预算、招标工程量清单及清单预算（或最高投标限价）、清理概算（仅限铁路工程）、合同（工程）结算和造价鉴定、计算工程量、工程变更费用咨询、工程成本测（核）算',isRoad:TRUE,isRailway:TRUE,isWaterway:TRUE,order:3,hasCost:TRUE,hasArea:TRUE}
A5: E1-3 | B5: 迁改工程 | C5: 2 | D5: 适用于交通建设项目迁改工程的施工图预算、招标工程量清单及清单预算（或最高投标限价）、清理概算（仅限铁路工程）、合同（工程）结算和造价鉴定、计算工程量、工程变更费用咨询、工程成本测（核）算 | E5: 3 | F5: 4 | G5: TRUE | H5: FALSE | I5: TRUE | J5: TRUE | K5: TRUE | L5: 3:{ref:'E1-3',name:'迁改工程',maxCoe:null,minCoe:null,defCoe:2,desc:'适用于交通建设项目迁改工程的施工图预算、招标工程量清单及清单预算（或最高投标限价）、清理概算（仅限铁路工程）、合同（工程）结算和造价鉴定、计算工程量、工程变更费用咨询、工程成本测（核）算',isRoad:TRUE,isRailway:TRUE,isWaterway:TRUE,order:4,hasCost:TRUE,hasArea:FALSE}
A6: E1-4 | B6: 工程建设其他费 | C6: 1 | D6: 适用于交通建设项目的工程建设其他费的施工图预算、招标工程量清单及清单预算（或最高投标限价）、清理概算（仅限铁路工程）和造价鉴定、计算工程量、工程变更费用咨询、工程成本测（核）算 | E6: 4 | F6: 5 | G6: TRUE | H6: FALSE | I6: TRUE | J6: TRUE | K6: TRUE | L6: 4:{ref:'E1-4',name:'工程建设其他费',maxCoe:null,minCoe:null,defCoe:1,desc:'适用于交通建设项目的工程建设其他费的施工图预算、招标工程量清单及清单预算（或最高投标限价）、清理概算（仅限铁路工程）和造价鉴定、计算工程量、工程变更费用咨询、工程成本测（核）算',isRoad:TRUE,isRailway:TRUE,isWaterway:TRUE,order:5,hasCost:TRUE,hasArea:FALSE}
A7: E1-5 | B7: 预备费 | C7: 1 | E7: 5 | F7: 6 | G7: TRUE | H7: FALSE | I7: TRUE | J7: TRUE | K7: TRUE | L7: 5:{ref:'E1-5',name:'预备费',maxCoe:null,minCoe:null,defCoe:1,desc:'',isRoad:TRUE,isRailway:TRUE,isWaterway:TRUE,order:6,hasCost:TRUE,hasArea:FALSE}
A8: E1-6 | B8: 建设期贷款利息 | C8: 1 | E8: 6 | F8: 7 | G8: TRUE | H8: FALSE | I8: TRUE | J8: TRUE | K8: TRUE | L8: 6:{ref:'E1-6',name:'建设期贷款利息',maxCoe:null,minCoe:null,defCoe:1,desc:'',isRoad:TRUE,isRailway:TRUE,isWaterway:TRUE,order:7,hasCost:TRUE,hasArea:FALSE}
A9: E2 | B9: 公路工程专业 | C9: 1 | D9: 适用于公路工程的全过程造价咨询、分阶段造价咨询、投资估算、初步设计概算、竣工决算和调整估算、调整概算（含征地拆迁和工程建设其他费） | E9: 7 | F9: 8 | G9: FALSE | H9: FALSE | I9: TRUE | J9: FALSE | K9: FALSE | L9: 7:{ref:'E2',name:'公路工程专业',maxCoe:null,minCoe:null,defCoe:1,desc:'适用于公路工程的全过程造价咨询、分阶段造价咨询、投资估算、初步设计概算、竣工决算和调整估算、调整概算（含征地拆迁和工程建设其他费）',isRoad:TRUE,isRailway:FALSE,isWaterway:FALSE,order:8,hasCost:FALSE,hasArea:FALSE}
A10: E2-1 | B10: 临时工程 | C10: 1 | D10: 适用于临时工程专业的施工图预算、招标工程量清单及清单预算（或最高投标限价）、合同（工程）结算和造价鉴定、计算工程量、工程变更费用咨询、工程成本测（核）算 | E10: 8 | F10: 9 | G10: TRUE | H10: FALSE | I10: TRUE | J10: FALSE | K10: FALSE | L10: 8:{ref:'E2-1',name:'临时工程',maxCoe:null,minCoe:null,defCoe:1,desc:'适用于临时工程专业的施工图预算、招标工程量清单及清单预算（或最高投标限价）、合同（工程）结算和造价鉴定、计算工程量、工程变更费用咨询、工程成本测（核）算',isRoad:TRUE,isRailway:FALSE,isWaterway:FALSE,order:9,hasCost:TRUE,hasArea:FALSE}
A11: E2-2 | B11: 路基工程 | C11: 1.2 | D11: 适用于路基工程专业的施工图预算、招标工程量清单及清单预算（或最高投标限价）、合同（工程）结算和造价鉴定、计算工程量、工程变更费用咨询、工程成本测（核）算 | E11: 9 | F11: 10 | G11: TRUE | H11: FALSE | I11: TRUE | J11: FALSE | K11: FALSE | L11: 9:{ref:'E2-2',name:'路基工程',maxCoe:null,minCoe:null,defCoe:1.2,desc:'适用于路基工程专业的施工图预算、招标工程量清单及清单预算（或最高投标限价）、合同（工程）结算和造价鉴定、计算工程量、工程变更费用咨询、工程成本测（核）算',isRoad:TRUE,isRailway:FALSE,isWaterway:FALSE,order:10,hasCost:TRUE,hasArea:FALSE}
A12: E2-3 | B12: 路面工程 | C12: 0.8 | D12: 适用于路面工程专业的施工图预算、招标工程量清单及清单预算（或最高投标限价）、合同（工程）结算和造价鉴定、计算工程量、工程变更费用咨询、工程成本测（核）算 | E12: 10 | F12: 11 | G12: TRUE | H12: FALSE | I12: TRUE | J12: FALSE | K12: FALSE | L12: 10:{ref:'E2-3',name:'路面工程',maxCoe:null,minCoe:null,defCoe:0.8,desc:'适用于路面工程专业的施工图预算、招标工程量清单及清单预算（或最高投标限价）、合同（工程）结算和造价鉴定、计算工程量、工程变更费用咨询、工程成本测（核）算',isRoad:TRUE,isRailway:FALSE,isWaterway:FALSE,order:11,hasCost:TRUE,hasArea:FALSE}
A13: E2-4 | B13: 桥涵工程 | C13: 0.9 | D13: 适用于桥梁涵洞工程专业的施工图预算、招标工程量清单及清单预算（或最高投标限价）、合同（工程）结算和造价鉴定、计算工程量、工程变更费用咨询、工程成本测（核）算 | E13: =ROW()-2 -> 11 | F13: =ROW()-1 -> 12 | G13: TRUE | H13: FALSE | I13: TRUE | J13: FALSE | K13: FALSE | L13: 11:{ref:'E2-4',name:'桥涵工程',maxCoe:null,minCoe:null,defCoe:0.9,desc:'适用于桥梁涵洞工程专业的施工图预算、招标工程量清单及清单预算（或最高投标限价）、合同（工程）结算和造价鉴定、计算工程量、工程变更费用咨询、工程成本测（核）算',isRoad:TRUE,isRailway:FALSE,isWaterway:FALSE,order:12,hasCost:TRUE,hasArea:FALSE}
A14: E2-5 | B14: 隧道工程 | C14: 1 | D14: 适用于隧道工程专业的施工图预算、招标工程量清单及清单预算（或最高投标限价）、合同（工程）结算和造价鉴定、计算工程量、工程变更费用咨询、工程成本测（核）算 | E14: 12 | F14: 13 | G14: TRUE | H14: FALSE | I14: TRUE | J14: FALSE | K14: FALSE | L14: 12:{ref:'E2-5',name:'隧道工程',maxCoe:null,minCoe:null,defCoe:1,desc:'适用于隧道工程专业的施工图预算、招标工程量清单及清单预算（或最高投标限价）、合同（工程）结算和造价鉴定、计算工程量、工程变更费用咨询、工程成本测（核）算',isRoad:TRUE,isRailway:FALSE,isWaterway:FALSE,order:13,hasCost:TRUE,hasArea:FALSE}
A15: E2-6 | B15: 交叉工程 | C15: 1.1 | D15: 适用于交叉工程专业的施工图预算、招标工程量清单及清单预算（或最高投标限价）、合同（工程）结算和造价鉴定、计算工程量、工程变更费用咨询、工程成本测（核）算 | E15: 13 | F15: 14 | G15: TRUE | H15: FALSE | I15: TRUE | J15: FALSE | K15: FALSE | L15: 13:{ref:'E2-6',name:'交叉工程',maxCoe:null,minCoe:null,defCoe:1.1,desc:'适用于交叉工程专业的施工图预算、招标工程量清单及清单预算（或最高投标限价）、合同（工程）结算和造价鉴定、计算工程量、工程变更费用咨询、工程成本测（核）算',isRoad:TRUE,isRailway:FALSE,isWaterway:FALSE,order:14,hasCost:TRUE,hasArea:FALSE}
A16: E2-7 | B16: 机电工程 | C16: 1.2 | D16: 适用于机电工程专业的施工图预算、招标工程量清单及清单预算（或最高投标限价）和造价鉴定、计算工程量、工程变更费用咨询、工程成本测（核）算 | E16: 14 | F16: 15 | G16: TRUE | H16: FALSE | I16: TRUE | J16: FALSE | K16: FALSE | L16: 14:{ref:'E2-7',name:'机电工程',maxCoe:null,minCoe:null,defCoe:1.2,desc:'适用于机电工程专业的施工图预算、招标工程量清单及清单预算（或最高投标限价）和造价鉴定、计算工程量、工程变更费用咨询、工程成本测（核）算',isRoad:TRUE,isRailway:FALSE,isWaterway:FALSE,order:15,hasCost:TRUE,hasArea:FALSE}
A17: E2-8 | B17: 交通安全设施工程 | C17: 1.2 | D17: 适用于交通安全设施工程专业的施工图预算、招标工程量清单及清单预算（或最高投标限价）和造价鉴定、计算工程量、工程变更费用咨询、工程成本测（核）算 | E17: 15 | F17: 16 | G17: TRUE | H17: FALSE | I17: TRUE | J17: FALSE | K17: FALSE | L17: 15:{ref:'E2-8',name:'交通安全设施工程',maxCoe:null,minCoe:null,defCoe:1.2,desc:'适用于交通安全设施工程专业的施工图预算、招标工程量清单及清单预算（或最高投标限价）和造价鉴定、计算工程量、工程变更费用咨询、工程成本测（核）算',isRoad:TRUE,isRailway:FALSE,isWaterway:FALSE,order:16,hasCost:TRUE,hasArea:FALSE}
A18: E2-9 | B18: 绿化及环境保护工程 | C18: 1.2 | D18: 适用于绿化工程专业的施工图预算、招标工程量清单及清单预算（或最高投标限价）和造价鉴定、计算工程量、工程变更费用咨询、工程成本测（核）算 | E18: 16 | F18: 17 | G18: TRUE | H18: FALSE | I18: TRUE | J18: FALSE | K18: FALSE | L18: 16:{ref:'E2-9',name:'绿化及环境保护工程',maxCoe:null,minCoe:null,defCoe:1.2,desc:'适用于绿化工程专业的施工图预算、招标工程量清单及清单预算（或最高投标限价）和造价鉴定、计算工程量、工程变更费用咨询、工程成本测（核）算',isRoad:TRUE,isRailway:FALSE,isWaterway:FALSE,order:17,hasCost:TRUE,hasArea:FALSE}
A19: E2-10 | B19: 房建工程 | C19: 2.5 | D19: 适用于房建工程专业的施工图预算、招标工程量清单及清单预算（或最高投标限价）、合同（工程）结算和造价鉴定、计算工程量、工程变更费用咨询、工程成本测（核）算 | E19: 17 | F19: 18 | G19: TRUE | H19: FALSE | I19: TRUE | J19: FALSE | K19: FALSE | L19: 17:{ref:'E2-10',name:'房建工程',maxCoe:null,minCoe:null,defCoe:2.5,desc:'适用于房建工程专业的施工图预算、招标工程量清单及清单预算（或最高投标限价）、合同（工程）结算和造价鉴定、计算工程量、工程变更费用咨询、工程成本测（核）算',isRoad:TRUE,isRailway:FALSE,isWaterway:FALSE,order:18,hasCost:TRUE,hasArea:FALSE}
A20: E3 | B20: 铁路工程专业 | C20: 1 | D20: 适用于铁路工程的投资估算、初步设计概算、清理概算、竣工决算和调整估算、调整概算（含征地拆迁和工程建设其他费） | E20: 18 | F20: 19 | G20: FALSE | H20: FALSE | I20: FALSE | J20: TRUE | K20: FALSE | L20: 18:{ref:'E3',name:'铁路工程专业',maxCoe:null,minCoe:null,defCoe:1,desc:'适用于铁路工程的投资估算、初步设计概算、清理概算、竣工决算和调整估算、调整概算（含征地拆迁和工程建设其他费）',isRoad:FALSE,isRailway:TRUE,isWaterway:FALSE,order:19,hasCost:FALSE,hasArea:FALSE}
A21: E3-1 | B21: 大型临时设施和过渡工程 | C21: 1 | D21: 适用于大型临时设施和过渡工程专业的施工图预算、招标工程量清单及清单预算（或最高投标限价）、合同（工程）结算和造价鉴定、计算工程量、工程变更费用咨询、工程成本测（核）算 | E21: 19 | F21: 20 | G21: TRUE | H21: FALSE | I21: FALSE | J21: TRUE | K21: FALSE | L21: 19:{ref:'E3-1',name:'大型临时设施和过渡工程',maxCoe:null,minCoe:null,defCoe:1,desc:'适用于大型临时设施和过渡工程专业的施工图预算、招标工程量清单及清单预算（或最高投标限价）、合同（工程）结算和造价鉴定、计算工程量、工程变更费用咨询、工程成本测（核）算',isRoad:FALSE,isRailway:TRUE,isWaterway:FALSE,order:20,hasCost:TRUE,hasArea:FALSE}
A22: E3-2 | B22: 路基工程 | C22: 1.2 | D22: 适用于路基工程专业的施工图预算、招标工程量清单及清单预算（或最高投标限价）、合同（工程）结算和造价鉴定、计算工程量、工程变更费用咨询、工程成本测（核）算 | E22: 20 | F22: 21 | G22: TRUE | H22: FALSE | I22: FALSE | J22: TRUE | K22: FALSE | L22: 20:{ref:'E3-2',name:'路基工程',maxCoe:null,minCoe:null,defCoe:1.2,desc:'适用于路基工程专业的施工图预算、招标工程量清单及清单预算（或最高投标限价）、合同（工程）结算和造价鉴定、计算工程量、工程变更费用咨询、工程成本测（核）算',isRoad:FALSE,isRailway:TRUE,isWaterway:FALSE,order:21,hasCost:TRUE,hasArea:FALSE}
A23: E3-3 | B23: 桥涵工程 | C23: 0.9 | D23: 适用于桥涵工程专业的施工图预算、招标工程量清单及清单预算（或最高投标限价）、合同（工程）结算和造价鉴定、计算工程量、工程变更费用咨询、工程成本测（核）算 | E23: =ROW()-2 -> 21 | F23: =ROW()-1 -> 22 | G23: TRUE | H23: FALSE | I23: FALSE | J23: TRUE | K23: FALSE | L23: 21:{ref:'E3-3',name:'桥涵工程',maxCoe:null,minCoe:null,defCoe:0.9,desc:'适用于桥涵工程专业的施工图预算、招标工程量清单及清单预算（或最高投标限价）、合同（工程）结算和造价鉴定、计算工程量、工程变更费用咨询、工程成本测（核）算',isRoad:FALSE,isRailway:TRUE,isWaterway:FALSE,order:22,hasCost:TRUE,hasArea:FALSE}
A24: E3-4 | B24: 隧道及明洞工程 | C24: 1 | D24: 适用于隧道及明洞工程专业的施工图预算、招标工程量清单及清单预算（或最高投标限价）、合同（工程）结算、竣工决算和造价鉴定、计算工程量、工程变更费用咨询、工程成本测（核）算 | E24: 22 | F24: 23 | G24: TRUE | H24: FALSE | I24: FALSE | J24: TRUE | K24: FALSE | L24: 22:{ref:'E3-4',name:'隧道及明洞工程',maxCoe:null,minCoe:null,defCoe:1,desc:'适用于隧道及明洞工程专业的施工图预算、招标工程量清单及清单预算（或最高投标限价）、合同（工程）结算、竣工决算和造价鉴定、计算工程量、工程变更费用咨询、工程成本测（核）算',isRoad:FALSE,isRailway:TRUE,isWaterway:FALSE,order:23,hasCost:TRUE,hasArea:FALSE}
A25: E3-5 | B25: 轨道工程 | C25: 0.3 | D25: 适用于轨道工程专业的施工图预算、招标工程量清单及清单预算（或最高投标限价）、合同（工程）结算和造价鉴定、计算工程量、工程变更费用咨询、工程成本测（核）算 | E25: 23 | F25: 24 | G25: TRUE | H25: FALSE | I25: FALSE | J25: TRUE | K25: FALSE | L25: 23:{ref:'E3-5',name:'轨道工程',maxCoe:null,minCoe:null,defCoe:0.3,desc:'适用于轨道工程专业的施工图预算、招标工程量清单及清单预算（或最高投标限价）、合同（工程）结算和造价鉴定、计算工程量、工程变更费用咨询、工程成本测（核）算',isRoad:FALSE,isRailway:TRUE,isWaterway:FALSE,order:24,hasCost:TRUE,hasArea:FALSE}
A26: E3-6 | B26: 通信、信号、信息及灾害监测工程 | C26: 2 | D26: 适用于通信、信号、信息及防灾监测工程专业的施工图预算、招标工程量清单及清单预算（或最高投标限价）、合同（工程）结算和造价鉴定、计算工程量、工程变更费用咨询、工程成本测（核）算 | E26: 24 | F26: 25 | G26: TRUE | H26: FALSE | I26: FALSE | J26: TRUE | K26: FALSE | L26: 24:{ref:'E3-6',name:'通信、信号、信息及灾害监测工程',maxCoe:null,minCoe:null,defCoe:2,desc:'适用于通信、信号、信息及防灾监测工程专业的施工图预算、招标工程量清单及清单预算（或最高投标限价）、合同（工程）结算和造价鉴定、计算工程量、工程变更费用咨询、工程成本测（核）算',isRoad:FALSE,isRailway:TRUE,isWaterway:FALSE,order:25,hasCost:TRUE,hasArea:FALSE}
A27: E3-7 | B27: 电力及电力牵引供电工程 | C27: 1.5 | D27: 适用于电力及电力牵引供电工程专业的施工图预算、招标工程量清单及清单预算（或最高投标限价）、合同（工程）结算和造价鉴定、计算工程量、工程变更费用咨询、工程成本测（核）算 | E27: 25 | F27: 26 | G27: TRUE | H27: FALSE | I27: FALSE | J27: TRUE | K27: FALSE | L27: 25:{ref:'E3-7',name:'电力及电力牵引供电工程',maxCoe:null,minCoe:null,defCoe:1.5,desc:'适用于电力及电力牵引供电工程专业的施工图预算、招标工程量清单及清单预算（或最高投标限价）、合同（工程）结算和造价鉴定、计算工程量、工程变更费用咨询、工程成本测（核）算',isRoad:FALSE,isRailway:TRUE,isWaterway:FALSE,order:26,hasCost:TRUE,hasArea:FALSE}
A28: E3-8 | B28: 房建工程（房屋建筑及附属工程） | C28: 2.5 | D28: 适用于房屋建筑及附属工程专业的施工图预算、招标工程量清单及清单预算（或最高投标限价）、合同（工程）结算和造价鉴定、计算工程量、工程变更费用咨询、工程成本测（核）算 | E28: 26 | F28: 27 | G28: TRUE | H28: FALSE | I28: FALSE | J28: TRUE | K28: FALSE | L28: 26:{ref:'E3-8',name:'房建工程（房屋建筑及附属工程）',maxCoe:null,minCoe:null,defCoe:2.5,desc:'适用于房屋建筑及附属工程专业的施工图预算、招标工程量清单及清单预算（或最高投标限价）、合同（工程）结算和造价鉴定、计算工程量、工程变更费用咨询、工程成本测（核）算',isRoad:FALSE,isRailway:TRUE,isWaterway:FALSE,order:27,hasCost:TRUE,hasArea:FALSE}
A29: E3-9 | B29: 装饰装修工程 | C29: 2.7 | D29: 适用于装饰装修工程专业的施工图预算、招标工程量清单及清单预算（或最高投标限价）、合同（工程）结算和造价鉴定、计算工程量、工程变更费用咨询、工程成本测（核）算 | E29: 27 | F29: 28 | G29: TRUE | H29: FALSE | I29: FALSE | J29: TRUE | K29: FALSE | L29: 27:{ref:'E3-9',name:'装饰装修工程',maxCoe:null,minCoe:null,defCoe:2.7,desc:'适用于装饰装修工程专业的施工图预算、招标工程量清单及清单预算（或最高投标限价）、合同（工程）结算和造价鉴定、计算工程量、工程变更费用咨询、工程成本测（核）算',isRoad:FALSE,isRailway:TRUE,isWaterway:FALSE,order:28,hasCost:TRUE,hasArea:FALSE}
A30: E4 | B30: 水运工程专业 | C30: 1 | D30: 适用于水运工程的投资估算、初步设计概算、竣工决算和调整估算、调整概算（含征地拆迁和工程建设其他费） | E30: 28 | F30: 29 | G30: FALSE | H30: FALSE | I30: FALSE | J30: FALSE | K30: TRUE | L30: 28:{ref:'E4',name:'水运工程专业',maxCoe:null,minCoe:null,defCoe:1,desc:'适用于水运工程的投资估算、初步设计概算、竣工决算和调整估算、调整概算（含征地拆迁和工程建设其他费）',isRoad:FALSE,isRailway:FALSE,isWaterway:TRUE,order:29,hasCost:FALSE,hasArea:FALSE}
A31: E4-1 | B31: 临时工程 | C31: 1.1 | D31: 适用于临时工程专业的施工图预算、招标工程量清单及清单预算（或最高投标限价）、合同（工程）结算、竣工决算和造价鉴定、计算工程量、工程变更费用咨询、工程成本测（核）算 | E31: 29 | F31: 30 | G31: TRUE | H31: FALSE | I31: FALSE | J31: FALSE | K31: TRUE | L31: 29:{ref:'E4-1',name:'临时工程',maxCoe:null,minCoe:null,defCoe:1.1,desc:'适用于临时工程专业的施工图预算、招标工程量清单及清单预算（或最高投标限价）、合同（工程）结算、竣工决算和造价鉴定、计算工程量、工程变更费用咨询、工程成本测（核）算',isRoad:FALSE,isRailway:FALSE,isWaterway:TRUE,order:30,hasCost:TRUE,hasArea:FALSE}
A32: E4-2 | B32: 土建工程 | C32: 1 | D32: 适用于土建工程专业的施工图预算、招标工程量清单及清单预算（或最高投标限价）、合同（工程）结算、竣工决算和造价鉴定、计算工程量、工程变更费用咨询、工程成本测（核）算 | E32: 30 | F32: 31 | G32: TRUE | H32: FALSE | I32: FALSE | J32: FALSE | K32: TRUE | L32: 30:{ref:'E4-2',name:'土建工程',maxCoe:null,minCoe:null,defCoe:1,desc:'适用于土建工程专业的施工图预算、招标工程量清单及清单预算（或最高投标限价）、合同（工程）结算、竣工决算和造价鉴定、计算工程量、工程变更费用咨询、工程成本测（核）算',isRoad:FALSE,isRailway:FALSE,isWaterway:TRUE,order:31,hasCost:TRUE,hasArea:FALSE}
A33: E4-3 | B33: 机电与金属结构工程 | C33: 1.5 | D33: 适用于机电与金属结构专业的施工图预算、招标工程量清单及清单预算（或最高投标限价）、合同（工程）结算和造价鉴定、计算工程量、工程变更费用咨询、工程成本测（核）算 | E33: 31 | F33: 32 | G33: TRUE | H33: FALSE | I33: FALSE | J33: FALSE | K33: TRUE | L33: 31:{ref:'E4-3',name:'机电与金属结构工程',maxCoe:null,minCoe:null,defCoe:1.5,desc:'适用于机电与金属结构专业的施工图预算、招标工程量清单及清单预算（或最高投标限价）、合同（工程）结算和造价鉴定、计算工程量、工程变更费用咨询、工程成本测（核）算',isRoad:FALSE,isRailway:FALSE,isWaterway:TRUE,order:32,hasCost:TRUE,hasArea:FALSE}
A34: E4-4 | B34: 设备工程 | C34: 1.5 | D34: 适用于设备工程专业的施工图预算、招标工程量清单及清单预算（或最高投标限价）、合同（工程）结算和造价鉴定、计算工程量、工程变更费用咨询、工程成本测（核）算 | E34: 32 | F34: 33 | G34: TRUE | H34: FALSE | I34: FALSE | J34: FALSE | K34: TRUE | L34: 32:{ref:'E4-4',name:'设备工程',maxCoe:null,minCoe:null,defCoe:1.5,desc:'适用于设备工程专业的施工图预算、招标工程量清单及清单预算（或最高投标限价）、合同（工程）结算和造价鉴定、计算工程量、工程变更费用咨询、工程成本测（核）算',isRoad:FALSE,isRailway:FALSE,isWaterway:TRUE,order:33,hasCost:TRUE,hasArea:FALSE}
A35: E4-5 | B35: 附属房建工程（房屋建筑及附属工程） | C35: 2.5 | D35: 适用于房屋建筑与水运附属工程专业的施工图预算、招标工程量清单及清单预算（或最高投标限价）、合同（工程）结算和造价鉴定、计算工程量、工程变更费用咨询、工程成本测（核）算 | E35: 33 | F35: 34 | G35: TRUE | H35: FALSE | I35: FALSE | J35: FALSE | K35: TRUE | L35: 33:{ref:'E4-5',name:'附属房建工程（房屋建筑及附属工程）',maxCoe:null,minCoe:null,defCoe:2.5,desc:'适用于房屋建筑与水运附属工程专业的施工图预算、招标工程量清单及清单预算（或最高投标限价）、合同（工程）结算和造价鉴定、计算工程量、工程变更费用咨询、工程成本测（核）算',isRoad:FALSE,isRailway:FALSE,isWaterway:TRUE,order:34,hasCost:TRUE,hasArea:FALSE}
L36: ="{"&_xlfn.TEXTJOIN(",",TRUE,L2:L35)&",}" -> {0:{ref:'E1',name:'交通运输工程通用专业',maxCoe:null,minCoe:null,defCoe:null,desc:'',isRoad:TRUE,isRailway:TRUE,isWaterway:TRUE,order:1,hasCost:FALSE,hasArea:FALSE},1:{ref:'E1-1',name:'征地（用海）补偿',maxCoe:null,minCoe:null,defCoe:1,desc:'适用于交通建设项目征地（用海）补偿的施工图预算、招标工程量清单及清单预算（或最高投标限价）、清理概算（仅限铁路工程）、合同（工程）结算和造价鉴定、计算工程量、工程变更费用咨询、工程成本测（核）算',isRoad:TRUE,isRailway:TRUE,isWaterway:TRUE,order:2,hasCost:TRUE,hasArea:TRUE},2:{ref:'E1-2',name:'拆迁补偿',maxCoe:null,minCoe:null,defCoe:2.5,desc:'适用于交通建设项目拆迁补偿的施工图预算、招标工程量清单及清单预算（或最高投标限价）、清理概算（仅限铁路工程）、合同（工程）结算和造价鉴定、计算工程量、工程变更费用咨询、工程成本测（核）算',isRoad:TRUE,isRailway:TRUE,isWaterway:TRUE,order:3,hasCost:TRUE,hasArea:TRUE},3:{ref:'E1-3',name:'迁改工程',maxCoe:null,minCoe:null,defCoe:2,desc:'适用于交通建设项目迁改工程的施工图预算、招标工程量清单及清单预算（或最高投标限价）、清理概算（仅限铁路工程）、合同（工程）结算和造价鉴定、计算工程量、工程变更费用咨询、工程成本测（核）算',isRoad:TRUE,isRailway:TRUE,isWaterway:TRUE,order:4,hasCost:TRUE,hasArea:FALSE},4:{ref:'E1-4',name:'工程建设其他费',maxCoe:null,minCoe:null,defCoe:1,desc:'适用于交通建设项目的工程建设其他费的施工图预算、招标工程量清单及清单预算（或最高投标限价）、清理概算（仅限铁路工程）和造价鉴定、计算工程量、工程变更费用咨询、工程成本测（核）算',isRoad:TRUE,isRailway:TRUE,isWaterway:TRUE,order:5,hasCost:TRUE,hasArea:FALSE},5:{ref:'E1-5',name:'预备费',maxCoe:null,minCoe:null,defCoe:1,desc:'',isRoad:TRUE,isRailway:TRUE,isWaterway:TRUE,order:6,hasCost:TRUE,hasArea:FALSE},6:{ref:'E1-6',name:'建设期贷款利息',maxCoe:null,minCoe:null,defCoe:1,desc:'',isRoad:TRUE,isRailway:TRUE,isWaterway:TRUE,order:7,hasCost:TRUE,hasArea:FALSE},7:{ref:'E2',name:'公路工程专业',maxCoe:null,minCoe:null,defCoe:1,desc:'适用于公路工程的全过程造价咨询、分阶段造价咨询、投资估算、初步设计概算、竣工决算和调整估算、调整概算（含征地拆迁和工程建设其他费）',isRoad:TRUE,isRailway:FALSE,isWaterway:FALSE,order:8,hasCost:FALSE,hasArea:FALSE},8:{ref:'E2-1',name:'临时工程',maxCoe:null,minCoe:null,defCoe:1,desc:'适用于临时工程专业的施工图预算、招标工程量清单及清单预算（或最高投标限价）、合同（工程）结算和造价鉴定、计算工程量、工程变更费用咨询、工程成本测（核）算',isRoad:TRUE,isRailway:FALSE,isWaterway:FALSE,order:9,hasCost:TRUE,hasArea:FALSE},9:{ref:'E2-2',name:'路基工程',maxCoe:null,minCoe:null,defCoe:1.2,desc:'适用于路基工程专业的施工图预算、招标工程量清单及清单预算（或最高投标限价）、合同（工程）结算和造价鉴定、计算工程量、工程变更费用咨询、工程成本测（核）算',isRoad:TRUE,isRailway:FALSE,isWaterway:FALSE,order:10,hasCost:TRUE,hasArea:FALSE},10:{ref:'E2-3',name:'路面工程',maxCoe:null,minCoe:null,defCoe:0.8,desc:'适用于路面工程专业的施工图预算、招标工程量清单及清单预算（或最高投标限价）、合同（工程）结算和造价鉴定、计算工程量、工程变更费用咨询、工程成本测（核）算',isRoad:TRUE,isRailway:FALSE,isWaterway:FALSE,order:11,hasCost:TRUE,hasArea:FALSE},11:{ref:'E2-4',name:'桥涵工程',maxCoe:null,minCoe:null,defCoe:0.9,desc:'适用于桥梁涵洞工程专业的施工图预算、招标工程量清单及清单预算（或最高投标限价）、合同（工程）结算和造价鉴定、计算工程量、工程变更费用咨询、工程成本测（核）算',isRoad:TRUE,isRailway:FALSE,isWaterway:FALSE,order:12,hasCost:TRUE,hasArea:FALSE},12:{ref:'E2-5',name:'隧道工程',maxCoe:null,minCoe:null,defCoe:1,desc:'适用于隧道工程专业的施工图预算、招标工程量清单及清单预算（或最高投标限价）、合同（工程）结算和造价鉴定、计算工程量、工程变更费用咨询、工程成本测（核）算',isRoad:TRUE,isRailway:FALSE,isWaterway:FALSE,order:13,hasCost:TRUE,hasArea:FALSE},13:{ref:'E2-6',name:'交叉工程',maxCoe:null,minCoe:null,defCoe:1.1,desc:'适用于交叉工程专业的施工图预算、招标工程量清单及清单预算（或最高投标限价）、合同（工程）结算和造价鉴定、计算工程量、工程变更费用咨询、工程成本测（核）算',isRoad:TRUE,isRailway:FALSE,isWaterway:FALSE,order:14,hasCost:TRUE,hasArea:FALSE},14:{ref:'E2-7',name:'机电工程',maxCoe:null,minCoe:null,defCoe:1.2,desc:'适用于机电工程专业的施工图预算、招标工程量清单及清单预算（或最高投标限价）和造价鉴定、计算工程量、工程变更费用咨询、工程成本测（核）算',isRoad:TRUE,isRailway:FALSE,isWaterway:FALSE,order:15,hasCost:TRUE,hasArea:FALSE},15:{ref:'E2-8',name:'交通安全设施工程',maxCoe:null,minCoe:null,defCoe:1.2,desc:'适用于交通安全设施工程专业的施工图预算、招标工程量清单及清单预算（或最高投标限价）和造价鉴定、计算工程量、工程变更费用咨询、工程成本测（核）算',isRoad:TRUE,isRailway:FALSE,isWaterway:FALSE,order:16,hasCost:TRUE,hasArea:FALSE},16:{ref:'E2-9',name:'绿化及环境保护工程',maxCoe:null,minCoe:null,defCoe:1.2,desc:'适用于绿化工程专业的施工图预算、招标工程量清单及清单预算（或最高投标限价）和造价鉴定、计算工程量、工程变更费用咨询、工程成本测（核）算',isRoad:TRUE,isRailway:FALSE,isWaterway:FALSE,order:17,hasCost:TRUE,hasArea:FALSE},17:{ref:'E2-10',name:'房建工程',maxCoe:null,minCoe:null,defCoe:2.5,desc:'适用于房建工程专业的施工图预算、招标工程量清单及清单预算（或最高投标限价）、合同（工程）结算和造价鉴定、计算工程量、工程变更费用咨询、工程成本测（核）算',isRoad:TRUE,isRailway:FALSE,isWaterway:FALSE,order:18,hasCost:TRUE,hasArea:FALSE},18:{ref:'E3',name:'铁路工程专业',maxCoe:null,minCoe:null,defCoe:1,desc:'适用于铁路工程的投资估算、初步设计概算、清理概算、竣工决算和调整估算、调整概算（含征地拆迁和工程建设其他费）',isRoad:FALSE,isRailway:TRUE,isWaterway:FALSE,order:19,hasCost:FALSE,hasArea:FALSE},19:{ref:'E3-1',name:'大型临时设施和过渡工程',maxCoe:null,minCoe:null,defCoe:1,desc:'适用于大型临时设施和过渡工程专业的施工图预算、招标工程量清单及清单预算（或最高投标限价）、合同（工程）结算和造价鉴定、计算工程量、工程变更费用咨询、工程成本测（核）算',isRoad:FALSE,isRailway:TRUE,isWaterway:FALSE,order:20,hasCost:TRUE,hasArea:FALSE},20:{ref:'E3-2',name:'路基工程',maxCoe:null,minCoe:null,defCoe:1.2,desc:'适用于路基工程专业的施工图预算、招标工程量清单及清单预算（或最高投标限价）、合同（工程）结算和造价鉴定、计算工程量、工程变更费用咨询、工程成本测（核）算',isRoad:FALSE,isRailway:TRUE,isWaterway:FALSE,order:21,hasCost:TRUE,hasArea:FALSE},21:{ref:'E3-3',name:'桥涵工程',maxCoe:null,minCoe:null,defCoe:0.9,desc:'适用于桥涵工程专业的施工图预算、招标工程量清单及清单预算（或最高投标限价）、合同（工程）结算和造价鉴定、计算工程量、工程变更费用咨询、工程成本测（核）算',isRoad:FALSE,isRailway:TRUE,isWaterway:FALSE,order:22,hasCost:TRUE,hasArea:FALSE},22:{ref:'E3-4',name:'隧道及明洞工程',maxCoe:null,minCoe:null,defCoe:1,desc:'适用于隧道及明洞工程专业的施工图预算、招标工程量清单及清单预算（或最高投标限价）、合同（工程）结算、竣工决算和造价鉴定、计算工程量、工程变更费用咨询、工程成本测（核）算',isRoad:FALSE,isRailway:TRUE,isWaterway:FALSE,order:23,hasCost:TRUE,hasArea:FALSE},23:{ref:'E3-5',name:'轨道工程',maxCoe:null,minCoe:null,defCoe:0.3,desc:'适用于轨道工程专业的施工图预算、招标工程量清单及清单预算（或最高投标限价）、合同（工程）结算和造价鉴定、计算工程量、工程变更费用咨询、工程成本测（核）算',isRoad:FALSE,isRailway:TRUE,isWaterway:FALSE,order:24,hasCost:TRUE,hasArea:FALSE},24:{ref:'E3-6',name:'通信、信号、信息及灾害监测工程',maxCoe:null,minCoe:null,defCoe:2,desc:'适用于通信、信号、信息及防灾监测工程专业的施工图预算、招标工程量清单及清单预算（或最高投标限价）、合同（工程）结算和造价鉴定、计算工程量、工程变更费用咨询、工程成本测（核）算',isRoad:FALSE,isRailway:TRUE,isWaterway:FALSE,order:25,hasCost:TRUE,hasArea:FALSE},25:{ref:'E3-7',name:'电力及电力牵引供电工程',maxCoe:null,minCoe:null,defCoe:1.5,desc:'适用于电力及电力牵引供电工程专业的施工图预算、招标工程量清单及清单预算（或最高投标限价）、合同（工程）结算和造价鉴定、计算工程量、工程变更费用咨询、工程成本测（核）算',isRoad:FALSE,isRailway:TRUE,isWaterway:FALSE,order:26,hasCost:TRUE,hasArea:FALSE},26:{ref:'E3-8',name:'房建工程（房屋建筑及附属工程）',maxCoe:null,minCoe:null,defCoe:2.5,desc:'适用于房屋建筑及附属工程专业的施工图预算、招标工程量清单及清单预算（或最高投标限价）、合同（工程）结算和造价鉴定、计算工程量、工程变更费用咨询、工程成本测（核）算',isRoad:FALSE,isRailway:TRUE,isWaterway:FALSE,order:27,hasCost:TRUE,hasArea:FALSE},27:{ref:'E3-9',name:'装饰装修工程',maxCoe:null,minCoe:null,defCoe:2.7,desc:'适用于装饰装修工程专业的施工图预算、招标工程量清单及清单预算（或最高投标限价）、合同（工程）结算和造价鉴定、计算工程量、工程变更费用咨询、工程成本测（核）算',isRoad:FALSE,isRailway:TRUE,isWaterway:FALSE,order:28,hasCost:TRUE,hasArea:FALSE},28:{ref:'E4',name:'水运工程专业',maxCoe:null,minCoe:null,defCoe:1,desc:'适用于水运工程的投资估算、初步设计概算、竣工决算和调整估算、调整概算（含征地拆迁和工程建设其他费）',isRoad:FALSE,isRailway:FALSE,isWaterway:TRUE,order:29,hasCost:FALSE,hasArea:FALSE},29:{ref:'E4-1',name:'临时工程',maxCoe:null,minCoe:null,defCoe:1.1,desc:'适用于临时工程专业的施工图预算、招标工程量清单及清单预算（或最高投标限价）、合同（工程）结算、竣工决算和造价鉴定、计算工程量、工程变更费用咨询、工程成本测（核）算',isRoad:FALSE,isRailway:FALSE,isWaterway:TRUE,order:30,hasCost:TRUE,hasArea:FALSE},30:{ref:'E4-2',name:'土建工程',maxCoe:null,minCoe:null,defCoe:1,desc:'适用于土建工程专业的施工图预算、招标工程量清单及清单预算（或最高投标限价）、合同（工程）结算、竣工决算和造价鉴定、计算工程量、工程变更费用咨询、工程成本测（核）算',isRoad:FALSE,isRailway:FALSE,isWaterway:TRUE,order:31,hasCost:TRUE,hasArea:FALSE},31:{ref:'E4-3',name:'机电与金属结构工程',maxCoe:null,minCoe:null,defCoe:1.5,desc:'适用于机电与金属结构专业的施工图预算、招标工程量清单及清单预算（或最高投标限价）、合同（工程）结算和造价鉴定、计算工程量、工程变更费用咨询、工程成本测（核）算',isRoad:FALSE,isRailway:FALSE,isWaterway:TRUE,order:32,hasCost:TRUE,hasArea:FALSE},32:{ref:'E4-4',name:'设备工程',maxCoe:null,minCoe:null,defCoe:1.5,desc:'适用于设备工程专业的施工图预算、招标工程量清单及清单预算（或最高投标限价）、合同（工程）结算和造价鉴定、计算工程量、工程变更费用咨询、工程成本测（核）算',isRoad:FALSE,isRailway:FALSE,isWaterway:TRUE,order:33,hasCost:TRUE,hasArea:FALSE},33:{ref:'E4-5',name:'附属房建工程（房屋建筑及附属工程）',maxCoe:null,minCoe:null,defCoe:2.5,desc:'适用于房屋建筑与水运附属工程专业的施工图预算、招标工程量清单及清单预算（或最高投标限价）、合同（工程）结算和造价鉴定、计算工程量、工程变更费用咨询、工程成本测（核）算',isRoad:FALSE,isRailway:FALSE,isWaterway:TRUE,order:34,hasCost:TRUE,hasArea:FALSE},}
